{"text_format":"1","workbook":"xlsx","n_sheets":13,"sheets":["Janvier","Février","Mars","Avril","Mai","Juin","Juillet","Août","Septembre","Octobre","Novembre","Décembre","Activités"],"not_rendered":{"charts":0,"images":0,"macros":1,"external_links":0,"defined_names":7,"comments":0,"pivot_tables":0},"unopened":[],"bounds":{"document_bytes":16777216,"sheet_cells":100000,"rows_first":2000,"rows_last":500,"rows_between":2000,"halvings":0,"cell_chars":16384,"cell_head_chars":4096},"cells_cut":0,"cells_raw":0,"read":"whole","date_system":"1900"}

{"sheet":"Janvier","index":0,"n_rows":46,"n_cols":42,"rows_kept":46,"cut":false,"hidden":false,"merged":[[9,20,9,26],[12,0,12,1],[1,0,2,7],[13,0,13,1],[3,1,3,7],[4,1,4,7],[5,1,5,7],[6,1,6,7],[7,1,7,7],[8,1,8,7],[9,1,9,7],[4,20,4,26],[5,20,5,26],[6,20,6,26],[7,20,7,26],[8,20,8,26],[54,2,58,24],[53,2,53,24],[1,20,2,27],[45,2,45,10],[46,2,50,10],[45,16,45,24],[46,16,50,24],[1,9,2,18],[3,9,3,18],[4,9,4,18],[5,9,5,18],[6,9,6,18],[7,9,7,18],[8,9,8,18],[9,9,9,18],[3,20,3,26]]}
[null,null,null,null,null,null,null,null,null,null,null,null,null,null,null,null,null,null,null,null,null,null,null,null,null,null,null,null,null,null,null,null,null,null,null,null,null,"Janvier",2022,"2022-01-01"]
["Références du collaborateur",null,null,null,null,null,null,null,null,"Référence du/des projets subventionnés + source de financement",null,null,null,null,null,null,null,null,null,null,"Absences",null,null,null,null,null,null,null,null,null,null,null,null,null,null,null,null,"Février",2023,"2022-04-18"]
[null,null,null,null,null,null,null,null,null,null,null,null,null,null,null,null,null,null,null,null,null,null,null,null,null,null,null,null,null,null,null,null,null,null,null,null,null,"Mars",2024,"2022-05-01"]
["Nom du Bénéficiaire/Partenaire",null,null,null,null,null,null,null,null,"a",null,null,null,null,null,null,null,null,null,null,"Weekend",null,null,null,null,null,null,"WE",null,null,null,null,null,null,null,null,null,"Avril",2025,"2022-05-26",{"$f":"J4","v":"a"},"projet_1"]
["Nom du collaborateur",null,null,null,null,null,null,null,null,"b",null,null,null,null,null,null,null,null,null,null,"Maladie",null,null,null,null,null,null,"M",null,null,null,null,null,null,null,null,null,"Mai",2026,"2022-06-06","b","projet_2"]
["Nom du responsable hiérarchique",null,null,null,null,null,null,null,null,"c",null,null,null,null,null,null,null,null,null,null,"Congé légal",null,null,null,null,null,null,"C",null,null,null,null,null,null,null,null,null,"Juin",null,"2022-07-21","c","projet_3"]
["Régime de travail (indiquer %)",1,null,null,null,null,null,null,null,null,null,null,null,null,null,null,null,null,null,null,"Jours fériés",null,null,null,null,null,null,"JF",null,null,null,null,null,null,null,null,null,"Juillet",null,"2022-08-15",0,"projet_4"]
["Plafond annuel",{"$f":"1720*B7","v":1720},null,null,null,null,null,null,null,null,null,null,null,null,null,null,null,null,null,null,"Autres motifs",null,null,null,null,null,null,"A",null,null,null,null,null,null,null,null,null,"Août",null,null,0,"projet_5"]
["Année",2024,null,null,null,null,null,null,null,null,null,null,null,null,null,null,null,null,null,null,"Récupération",null,null,null,null,null,null,"R",null,null,null,null,null,null,null,null,null,"Septembre",null,"2022-11-01",0,"projet_6"]
["Mois",1,null,null,null,null,null,null,null,null,null,null,null,null,null,null,null,null,null,null,"Temps partiel",null,null,null,null,null,null,"TP",null,null,null,null,null,null,null,null,null,"Octobre",null,"2022-12-25",0,"projet_7"]
[null,null,null,null,null,null,null,null,null,null,null,null,null,null,null,null,null,null,null,null,null,null,null,null,null,null,null,null,null,null,null,null,null,null,null,null,null,"Novembre"]
[null,null,null,null,null,null,null,null,null,null,null,null,null,null,null,null,null,null,null,null,null,null,null,null,null,null,null,null,null,null,null,null,null,null,null,null,null,"Décembre"]
["Jours du calendrier",null,{"$f":"DATE(B9,B10,1)","v":"2024-01-01"},{"$f":"C13+1","v":"2024-01-02"},{"$f":"D13+1","v":"2024-01-03"},"2024-01-04","2024-01-05","2024-01-06","2024-01-07","2024-01-08","2024-01-09","2024-01-10","2024-01-11","2024-01-12","2024-01-13","2024-01-14","2024-01-15","2024-01-16","2024-01-17","2024-01-18","2024-01-19","2024-01-20","2024-01-21","2024-01-22","2024-01-23","2024-01-24","2024-01-25","2024-01-26","2024-01-27","2024-01-28","2024-01-29","2024-01-30","2024-01-31","Total"]
["Absences",null,{"$f":"IF(WEEKDAY(C13,2)>5,\"WE\",\"\")","v":""},{"$f":"IF(WEEKDAY(D13,2)>5,\"WE\",\"\")","v":""},{"$f":"IF(WEEKDAY(E13,2)>5,\"WE\",\"\")","v":""},"","","WE","WE","","","","","","WE","WE","","","","","","WE","WE","","","","","","WE","WE","","",""]
["Intitulé du projet","Activités"]
["a",null,null,null,null,null,null,null,null,null,null,null,null,null,null,null,null,null,null,null,null,null,null,null,null,null,null,null,null,null,null,null,null,{"$f":"SUM(C16:AG16)","v":0},null,null,{"$f":"VLOOKUP(A16,$AO$4:$AP$10,2,TRUE)","v":"projet_1"}]
[null,null,null,null,null,null,null,null,null,null,null,null,null,null,null,null,null,null,null,null,null,null,null,null,null,null,null,null,null,null,null,null,null,{"$f":"SUM(C17:AG17)","v":0},null,null,{"$f":"VLOOKUP(A17,$AO$4:$AP$10,2,TRUE)","v":"projet_7"}]
[null,null,null,null,null,null,null,null,null,null,null,null,null,null,null,null,null,null,null,null,null,null,null,null,null,null,null,null,null,null,null,null,null,0,null,null,"projet_7"]
[null,null,null,null,null,null,null,null,null,null,null,null,null,null,null,null,null,null,null,null,null,null,null,null,null,null,null,null,null,null,null,null,null,0,null,null,"projet_7"]
[null,null,null,null,null,null,null,null,null,null,null,null,null,null,null,null,null,null,null,null,null,null,null,null,null,null,null,null,null,null,null,null,null,0,null,null,"projet_7"]
[null,null,null,null,null,null,null,null,null,null,null,null,null,null,null,null,null,null,null,null,null,null,null,null,null,null,null,null,null,null,null,null,null,0,null,null,"projet_7"]
[null,null,null,null,null,null,null,null,null,null,null,null,null,null,null,null,null,null,null,null,null,null,null,null,null,null,null,null,null,null,null,null,null,0,null,null,"projet_7"]
[null,null,null,null,null,null,null,null,null,null,null,null,null,null,null,null,null,null,null,null,null,null,null,null,null,null,null,null,null,null,null,null,null,0,null,null,"projet_7"]
[null,null,null,null,null,null,null,null,null,null,null,null,null,null,null,null,null,null,null,null,null,null,null,null,null,null,null,null,null,null,null,null,null,0,null,null,"projet_7"]
[null,null,null,null,null,null,null,null,null,null,null,null,null,null,null,null,null,null,null,null,null,null,null,null,null,null,null,null,null,null,null,null,null,0,null,null,"projet_7"]
[null,null,null,null,null,null,null,null,null,null,null,null,null,null,null,null,null,null,null,null,null,null,null,null,null,null,null,null,null,null,null,null,null,0,null,null,"projet_7"]
[null,null,null,null,null,null,null,null,null,null,null,null,null,null,null,null,null,null,null,null,null,null,null,null,null,null,null,null,null,null,null,null,null,0,null,null,"projet_7"]
[null,null,null,null,null,null,null,null,null,null,null,null,null,null,null,null,null,null,null,null,null,null,null,null,null,null,null,null,null,null,null,null,null,0,null,null,"projet_7"]
[null,null,null,null,null,null,null,null,null,null,null,null,null,null,null,null,null,null,null,null,null,null,null,null,null,null,null,null,null,null,null,null,null,0,null,null,"projet_7"]
[null,null,null,null,null,null,null,null,null,null,null,null,null,null,null,null,null,null,null,null,null,null,null,null,null,null,null,null,null,null,null,null,null,0,null,null,"projet_7"]
[null,null,null,null,null,null,null,null,null,null,null,null,null,null,null,null,null,null,null,null,null,null,null,null,null,null,null,null,null,null,null,null,null,0,null,null,"projet_7"]
[null,null,null,null,null,null,null,null,null,null,null,null,null,null,null,null,null,null,null,null,null,null,null,null,null,null,null,null,null,null,null,null,null,0,null,null,"projet_7"]
[null,null,null,null,null,null,null,null,null,null,null,null,null,null,null,null,null,null,null,null,null,null,null,null,null,null,null,null,null,null,null,null,null,0,null,null,"projet_7"]
[null,null,null,null,null,null,null,null,null,null,null,null,null,null,null,null,null,null,null,null,null,null,null,null,null,null,null,null,null,null,null,null,null,0,null,null,"projet_7"]
[null,{"$f":"\"Total - \"&J4","v":"Total - a"},{"$f":"SUMIF($A$16:$A$34,$J4,C$16:C$34)","v":0},{"$f":"SUMIF($A$16:$A$34,$J4,D$16:D$34)","v":0},0,0,0,0,0,0,0,0,0,0,0,0,0,0,0,0,0,0,0,0,0,0,0,0,0,0,0,0,0,{"$f":"SUMIF($A$16:$A$34,$J4,AH$16:AH$34)","v":0}]
[null,"Total - b",{"$f":"SUMIF($A$16:$A$34,$J5,C$16:C$34)","v":0},{"$f":"SUMIF($A$16:$A$34,$J5,D$16:D$34)","v":0},0,0,0,0,0,0,0,0,0,0,0,0,0,0,0,0,0,0,0,0,0,0,0,0,0,0,0,0,0,{"$f":"SUMIF($A$16:$A$34,$J5,AH$16:AH$34)","v":0}]
[null,"Total - c",{"$f":"SUMIF($A$16:$A$34,$J6,C$16:C$34)","v":0},{"$f":"SUMIF($A$16:$A$34,$J$6,D$16:D$34)","v":0},0,0,0,0,0,0,0,0,0,0,0,0,0,0,0,0,0,0,0,0,0,0,0,0,0,0,0,0,0,0]
[null,"Total - ",{"$f":"SUMIF($A$16:$A$34,$J$7,C$16:C$34)","v":0},0,0,0,0,0,0,0,0,0,0,0,0,0,0,0,0,0,0,0,0,0,0,0,0,0,0,0,0,0,0,0]
[null,"Total - ",{"$f":"SUMIF($A$16:$A$34,$J$8,C$16:C$34)","v":0},0,0,0,0,0,0,0,0,0,0,0,0,0,0,0,0,0,0,0,0,0,0,0,0,0,0,0,0,0,0,0]
[null,"Total - ",{"$f":"SUMIF($A$16:$A$34,$J$9,C$16:C$34)","v":0},0,0,0,0,0,0,0,0,0,0,0,0,0,0,0,0,0,0,0,0,0,0,0,0,0,0,0,0,0,0,0]
[null,"Total - ",{"$f":"SUMIF($A$16:$A$34,$J$10,C$16:C$34)","v":0},0,0,0,0,0,0,0,0,0,0,0,0,0,0,0,0,0,0,0,0,0,0,0,0,0,0,0,0,0,0,0]
[null,"Heures HORS SUBVENTION",null,null,null,null,null,null,null,null,null,null,null,null,null,null,null,null,null,null,null,null,null,null,null,null,null,null,null,null,null,null,null,{"$f":"SUM(C42:AG42)","v":0}]
[null,"Total",{"$f":"SUM(C35:C42)","v":0},{"$f":"SUM(D35:D42)","v":0},0,0,0,0,0,0,0,0,0,0,0,0,0,0,0,0,0,0,0,0,0,0,0,0,0,0,0,0,0,{"$f":"SUM(C43:AG43)","v":0}]
[null,"* Normalement une journée = 7,6 heures et 1 an à temps plein = 1.720 heures max"]
[]
[null,null,"Date et signature du collaborateur",null,null,null,null,null,null,null,null,null,null,null,null,null,"Date et signature du responsable hiérarchique"]

{"sheet":"Février","index":1,"n_rows":46,"n_cols":42,"rows_kept":46,"cut":false,"hidden":false,"merged":[[53,2,53,24],[54,2,58,24],[12,0,12,1],[13,0,13,1],[45,2,45,10],[45,16,45,24],[46,2,50,10],[46,16,50,24],[8,1,8,7],[8,9,8,18],[8,20,8,26],[9,1,9,7],[9,9,9,18],[9,20,9,26],[6,1,6,7],[6,9,6,18],[6,20,6,26],[7,1,7,7],[7,9,7,18],[7,20,7,26],[4,1,4,7],[4,9,4,18],[4,20,4,26],[5,1,5,7],[5,9,5,18],[5,20,5,26],[1,0,2,7],[1,9,2,18],[1,20,2,27],[3,1,3,7],[3,9,3,18],[3,20,3,26]]}
[null,null,null,null,null,null,null,null,null,null,null,null,null,null,null,null,null,null,null,null,null,null,null,null,null,null,null,null,null,null,null,null,null,null,null,null,null,"Janvier",2022,"2022-01-01"]
["Références du collaborateur",null,null,null,null,null,null,null,null,"Référence du/des projets subventionnés + source de financement",null,null,null,null,null,null,null,null,null,null,"Absences",null,null,null,null,null,null,null,null,null,null,null,null,null,null,null,null,"Février",2023,"2022-04-18"]
[null,null,null,null,null,null,null,null,null,null,null,null,null,null,null,null,null,null,null,null,null,null,null,null,null,null,null,null,null,null,null,null,null,null,null,null,null,"Mars",2024,"2022-05-01"]
["Nom du Bénéficiaire/Partenaire",null,null,null,null,null,null,null,null,"a",null,null,null,null,null,null,null,null,null,null,"Weekend",null,null,null,null,null,null,"WE",null,null,null,null,null,null,null,null,null,"Avril",2025,"2022-05-26",{"$f":"J4","v":"a"},"projet_1"]
["Nom du collaborateur",null,null,null,null,null,null,null,null,"b",null,null,null,null,null,null,null,null,null,null,"Maladie",null,null,null,null,null,null,"M",null,null,null,null,null,null,null,null,null,"Mai",2026,"2022-06-06","b","projet_2"]
["Nom du responsable hiérarchique",null,null,null,null,null,null,null,null,"c",null,null,null,null,null,null,null,null,null,null,"Congé légal",null,null,null,null,null,null,"C",null,null,null,null,null,null,null,null,null,"Juin",null,"2022-07-21","c","projet_3"]
["Régime de travail (indiquer %)",1,null,null,null,null,null,null,null,null,null,null,null,null,null,null,null,null,null,null,"Jours fériés",null,null,null,null,null,null,"JF",null,null,null,null,null,null,null,null,null,"Juillet",null,"2022-08-15",0,"projet_4"]
["Plafond annuel",{"$f":"1720*B7","v":1720},null,null,null,null,null,null,null,null,null,null,null,null,null,null,null,null,null,null,"Autres motifs",null,null,null,null,null,null,"A",null,null,null,null,null,null,null,null,null,"Août",null,null,0,"projet_5"]
["Année",2024,null,null,null,null,null,null,null,null,null,null,null,null,null,null,null,null,null,null,"Récupération",null,null,null,null,null,null,"R",null,null,null,null,null,null,null,null,null,"Septembre",null,"2022-11-01",0,"projet_6"]
["Mois",2,null,null,null,null,null,null,null,null,null,null,null,null,null,null,null,null,null,null,"Temps partiel",null,null,null,null,null,null,"TP",null,null,null,null,null,null,null,null,null,"Octobre",null,"2022-12-25",0,"projet_7"]
[null,null,null,null,null,null,null,null,null,null,null,null,null,null,null,null,null,null,null,null,null,null,null,null,null,null,null,null,null,null,null,null,null,null,null,null,null,"Novembre"]
[null,null,null,null,null,null,null,null,null,null,null,null,null,null,null,null,null,null,null,null,null,null,null,null,null,null,null,null,null,null,null,null,null,null,null,null,null,"Décembre"]
["Jours du calendrier",null,{"$f":"DATE(B9,B10,1)","v":"2024-02-01"},{"$f":"C13+1","v":"2024-02-02"},{"$f":"D13+1","v":"2024-02-03"},"2024-02-04","2024-02-05","2024-02-06","2024-02-07","2024-02-08","2024-02-09","2024-02-10","2024-02-11","2024-02-12","2024-02-13","2024-02-14","2024-02-15","2024-02-16","2024-02-17","2024-02-18","2024-02-19","2024-02-20","2024-02-21","2024-02-22","2024-02-23","2024-02-24","2024-02-25","2024-02-26","2024-02-27","2024-02-28","2024-02-29","2024-03-01","2024-03-02","Total"]
["Absences",null,{"$f":"IF(WEEKDAY(C13,2)>5,\"WE\",\"\")","v":""},{"$f":"IF(WEEKDAY(D13,2)>5,\"WE\",\"\")","v":""},{"$f":"IF(WEEKDAY(E13,2)>5,\"WE\",\"\")","v":"WE"},"WE","","","","","","WE","WE","","","","","","WE","WE","","","","","","WE","WE","","","","","","WE"]
["Intitulé du projet","Activités"]
[null,null,null,null,null,null,null,null,null,null,null,null,null,null,null,null,null,null,null,null,null,null,null,null,null,null,null,null,null,null,null,null,null,{"$f":"SUM(C16:AG16)","v":0},null,null,{"$f":"VLOOKUP(A16,$AO$4:$AP$10,2,TRUE)","v":"projet_7"}]
[null,null,null,null,null,null,null,null,null,null,null,null,null,null,null,null,null,null,null,null,null,null,null,null,null,null,null,null,null,null,null,null,null,{"$f":"SUM(C17:AG17)","v":0},null,null,{"$f":"VLOOKUP(A17,$AO$4:$AP$10,2,TRUE)","v":"projet_7"}]
[null,null,null,null,null,null,null,null,null,null,null,null,null,null,null,null,null,null,null,null,null,null,null,null,null,null,null,null,null,null,null,null,null,0,null,null,"projet_7"]
[null,null,null,null,null,null,null,null,null,null,null,null,null,null,null,null,null,null,null,null,null,null,null,null,null,null,null,null,null,null,null,null,null,0,null,null,"projet_7"]
[null,null,null,null,null,null,null,null,null,null,null,null,null,null,null,null,null,null,null,null,null,null,null,null,null,null,null,null,null,null,null,null,null,0,null,null,"projet_7"]
[null,null,null,null,null,null,null,null,null,null,null,null,null,null,null,null,null,null,null,null,null,null,null,null,null,null,null,null,null,null,null,null,null,0,null,null,"projet_7"]
[null,null,null,null,null,null,null,null,null,null,null,null,null,null,null,null,null,null,null,null,null,null,null,null,null,null,null,null,null,null,null,null,null,0,null,null,"projet_7"]
[null,null,null,null,null,null,null,null,null,null,null,null,null,null,null,null,null,null,null,null,null,null,null,null,null,null,null,null,null,null,null,null,null,0,null,null,"projet_7"]
[null,null,null,null,null,null,null,null,null,null,null,null,null,null,null,null,null,null,null,null,null,null,null,null,null,null,null,null,null,null,null,null,null,0,null,null,"projet_7"]
[null,null,null,null,null,null,null,null,null,null,null,null,null,null,null,null,null,null,null,null,null,null,null,null,null,null,null,null,null,null,null,null,null,0,null,null,"projet_7"]
[null,null,null,null,null,null,null,null,null,null,null,null,null,null,null,null,null,null,null,null,null,null,null,null,null,null,null,null,null,null,null,null,null,0,null,null,"projet_7"]
[null,null,null,null,null,null,null,null,null,null,null,null,null,null,null,null,null,null,null,null,null,null,null,null,null,null,null,null,null,null,null,null,null,0,null,null,"projet_7"]
[null,null,null,null,null,null,null,null,null,null,null,null,null,null,null,null,null,null,null,null,null,null,null,null,null,null,null,null,null,null,null,null,null,0,null,null,"projet_7"]
[null,null,null,null,null,null,null,null,null,null,null,null,null,null,null,null,null,null,null,null,null,null,null,null,null,null,null,null,null,null,null,null,null,0,null,null,"projet_7"]
[null,null,null,null,null,null,null,null,null,null,null,null,null,null,null,null,null,null,null,null,null,null,null,null,null,null,null,null,null,null,null,null,null,0,null,null,"projet_7"]
[null,null,null,null,null,null,null,null,null,null,null,null,null,null,null,null,null,null,null,null,null,null,null,null,null,null,null,null,null,null,null,null,null,0,null,null,"projet_7"]
[null,null,null,null,null,null,null,null,null,null,null,null,null,null,null,null,null,null,null,null,null,null,null,null,null,null,null,null,null,null,null,null,null,0,null,null,"projet_7"]
[null,null,null,null,null,null,null,null,null,null,null,null,null,null,null,null,null,null,null,null,null,null,null,null,null,null,null,null,null,null,null,null,null,0,null,null,"projet_7"]
[null,null,null,null,null,null,null,null,null,null,null,null,null,null,null,null,null,null,null,null,null,null,null,null,null,null,null,null,null,null,null,null,null,0,null,null,"projet_7"]
[null,{"$f":"\"Total - \"&J4","v":"Total - a"},{"$f":"SUMIF($A$16:$A$34,$J4,C$16:C$34)","v":0},{"$f":"SUMIF($A$16:$A$34,$J4,D$16:D$34)","v":0},0,0,0,0,0,0,0,0,0,0,0,0,0,0,0,0,0,0,0,0,0,0,0,0,0,0,0,0,0,0]
[null,"Total - b",{"$f":"SUMIF($A$16:$A$34,$J5,C$16:C$34)","v":0},0,0,0,0,0,0,0,0,0,0,0,0,0,0,0,0,0,0,0,0,0,0,0,0,0,0,0,0,0,0,0]
[null,"Total - c",{"$f":"SUMIF($A$16:$A$34,$J6,C$16:C$34)","v":0},{"$f":"SUMIF($A$16:$A$34,$J$6,D$16:D$34)","v":0},0,0,0,0,0,0,0,0,0,0,0,0,0,0,0,0,0,0,0,0,0,0,0,0,0,0,0,0,0,0]
[null,"Total - ",{"$f":"SUMIF($A$16:$A$34,$J$7,C$16:C$34)","v":0},0,0,0,0,0,0,0,0,0,0,0,0,0,0,0,0,0,0,0,0,0,0,0,0,0,0,0,0,0,0,0]
[null,"Total - ",{"$f":"SUMIF($A$16:$A$34,$J$8,C$16:C$34)","v":0},0,0,0,0,0,0,0,0,0,0,0,0,0,0,0,0,0,0,0,0,0,0,0,0,0,0,0,0,0,0,0]
[null,"Total - ",{"$f":"SUMIF($A$16:$A$34,$J$9,C$16:C$34)","v":0},0,0,0,0,0,0,0,0,0,0,0,0,0,0,0,0,0,0,0,0,0,0,0,0,0,0,0,0,0,0,0]
[null,"Total - ",{"$f":"SUMIF($A$16:$A$34,$J$10,C$16:C$34)","v":0},0,0,0,0,0,0,0,0,0,0,0,0,0,0,0,0,0,0,0,0,0,0,0,0,0,0,0,0,0,0,0]
[null,"Heures HORS SUBVENTION",null,null,null,null,null,null,null,null,null,null,null,null,null,null,null,null,null,null,null,null,null,null,null,null,null,null,null,null,null,null,null,{"$f":"SUM(C42:AG42)","v":0}]
[null,"Total",{"$f":"SUM(C35:C42)","v":0},{"$f":"SUM(D35:D42)","v":0},0,0,0,0,0,0,0,0,0,0,0,0,0,0,0,0,0,0,0,0,0,0,0,0,0,0,0,0,0,{"$f":"SUM(C43:AG43)","v":0}]
[null,"* Normalement une journée = 7,6 heures et 1 an à temps plein = 1.720 heures max"]
[]
[null,null,"Date et signature du collaborateur",null,null,null,null,null,null,null,null,null,null,null,null,null,"Date et signature du responsable hiérarchique"]

{"sheet":"Mars","index":2,"n_rows":46,"n_cols":42,"rows_kept":46,"cut":false,"hidden":false,"merged":[[53,2,53,24],[54,2,58,24],[12,0,12,1],[13,0,13,1],[45,2,45,10],[45,16,45,24],[46,2,50,10],[46,16,50,24],[8,1,8,7],[8,9,8,18],[8,20,8,26],[9,1,9,7],[9,9,9,18],[9,20,9,26],[6,1,6,7],[6,9,6,18],[6,20,6,26],[7,1,7,7],[7,9,7,18],[7,20,7,26],[4,1,4,7],[4,9,4,18],[4,20,4,26],[5,1,5,7],[5,9,5,18],[5,20,5,26],[1,0,2,7],[1,9,2,18],[1,20,2,27],[3,1,3,7],[3,9,3,18],[3,20,3,26]]}
[null,null,null,null,null,null,null,null,null,null,null,null,null,null,null,null,null,null,null,null,null,null,null,null,null,null,null,null,null,null,null,null,null,null,null,null,null,"Janvier",2022,"2022-01-01"]
["Références du collaborateur",null,null,null,null,null,null,null,null,"Référence du/des projets subventionnés + source de financement",null,null,null,null,null,null,null,null,null,null,"Absences",null,null,null,null,null,null,null,null,null,null,null,null,null,null,null,null,"Février",2023,"2022-04-18"]
[null,null,null,null,null,null,null,null,null,null,null,null,null,null,null,null,null,null,null,null,null,null,null,null,null,null,null,null,null,null,null,null,null,null,null,null,null,"Mars",2024,"2022-05-01"]
["Nom du Bénéficiaire/Partenaire",null,null,null,null,null,null,null,null,"a",null,null,null,null,null,null,null,null,null,null,"Weekend",null,null,null,null,null,null,"WE",null,null,null,null,null,null,null,null,null,"Avril",2025,"2022-05-26",{"$f":"J4","v":"a"},"projet_1"]
["Nom du collaborateur",null,null,null,null,null,null,null,null,"b",null,null,null,null,null,null,null,null,null,null,"Maladie",null,null,null,null,null,null,"M",null,null,null,null,null,null,null,null,null,"Mai",2026,"2022-06-06","b","projet_2"]
["Nom du responsable hiérarchique",null,null,null,null,null,null,null,null,"c",null,null,null,null,null,null,null,null,null,null,"Congé légal",null,null,null,null,null,null,"C",null,null,null,null,null,null,null,null,null,"Juin",null,"2022-07-21","c","projet_3"]
["Régime de travail (indiquer %)",1,null,null,null,null,null,null,null,null,null,null,null,null,null,null,null,null,null,null,"Jours fériés",null,null,null,null,null,null,"JF",null,null,null,null,null,null,null,null,null,"Juillet",null,"2022-08-15",0,"projet_4"]
["Plafond annuel",{"$f":"1720*B7","v":1720},null,null,null,null,null,null,null,null,null,null,null,null,null,null,null,null,null,null,"Autres motifs",null,null,null,null,null,null,"A",null,null,null,null,null,null,null,null,null,"Août",null,null,0,"projet_5"]
["Année",2024,null,null,null,null,null,null,null,null,null,null,null,null,null,null,null,null,null,null,"Récupération",null,null,null,null,null,null,"R",null,null,null,null,null,null,null,null,null,"Septembre",null,"2022-11-01",0,"projet_6"]
["Mois",3,null,null,null,null,null,null,null,null,null,null,null,null,null,null,null,null,null,null,"Temps partiel",null,null,null,null,null,null,"TP",null,null,null,null,null,null,null,null,null,"Octobre",null,"2022-12-25",0,"projet_7"]
[null,null,null,null,null,null,null,null,null,null,null,null,null,null,null,null,null,null,null,null,null,null,null,null,null,null,null,null,null,null,null,null,null,null,null,null,null,"Novembre"]
[null,null,null,null,null,null,null,null,null,null,null,null,null,null,null,null,null,null,null,null,null,null,null,null,null,null,null,null,null,null,null,null,null,null,null,null,null,"Décembre"]
["Jours du calendrier",null,{"$f":"DATE(B9,B10,1)","v":"2024-03-01"},{"$f":"C13+1","v":"2024-03-02"},{"$f":"D13+1","v":"2024-03-03"},"2024-03-04","2024-03-05","2024-03-06","2024-03-07","2024-03-08","2024-03-09","2024-03-10","2024-03-11","2024-03-12","2024-03-13","2024-03-14","2024-03-15","2024-03-16","2024-03-17","2024-03-18","2024-03-19","2024-03-20","2024-03-21","2024-03-22","2024-03-23","2024-03-24","2024-03-25","2024-03-26","2024-03-27","2024-03-28","2024-03-29","2024-03-30","2024-03-31","Total"]
["Absences",null,{"$f":"IF(WEEKDAY(C13,2)>5,\"WE\",\"\")","v":""},{"$f":"IF(WEEKDAY(D13,2)>5,\"WE\",\"\")","v":"WE"},{"$f":"IF(WEEKDAY(E13,2)>5,\"WE\",\"\")","v":"WE"},"","","","","","WE","WE","","","","","","WE","WE","","","","","","WE","WE","","","","","","WE","WE"]
["Intitulé du projet","Activités"]
[null,null,null,null,null,null,null,null,null,null,null,null,null,null,null,null,null,null,null,null,null,null,null,null,null,null,null,null,null,null,null,null,null,{"$f":"SUM(C16:AG16)","v":0},null,null,{"$f":"VLOOKUP(A16,$AO$4:$AP$10,2,TRUE)","v":"projet_7"}]
[null,null,null,null,null,null,null,null,null,null,null,null,null,null,null,null,null,null,null,null,null,null,null,null,null,null,null,null,null,null,null,null,null,{"$f":"SUM(C17:AG17)","v":0},null,null,{"$f":"VLOOKUP(A17,$AO$4:$AP$10,2,TRUE)","v":"projet_7"}]
[null,null,null,null,null,null,null,null,null,null,null,null,null,null,null,null,null,null,null,null,null,null,null,null,null,null,null,null,null,null,null,null,null,0,null,null,"projet_7"]
[null,null,null,null,null,null,null,null,null,null,null,null,null,null,null,null,null,null,null,null,null,null,null,null,null,null,null,null,null,null,null,null,null,0,null,null,"projet_7"]
[null,null,null,null,null,null,null,null,null,null,null,null,null,null,null,null,null,null,null,null,null,null,null,null,null,null,null,null,null,null,null,null,null,0,null,null,"projet_7"]
[null,null,null,null,null,null,null,null,null,null,null,null,null,null,null,null,null,null,null,null,null,null,null,null,null,null,null,null,null,null,null,null,null,0,null,null,"projet_7"]
[null,null,null,null,null,null,null,null,null,null,null,null,null,null,null,null,null,null,null,null,null,null,null,null,null,null,null,null,null,null,null,null,null,0,null,null,"projet_7"]
[null,null,null,null,null,null,null,null,null,null,null,null,null,null,null,null,null,null,null,null,null,null,null,null,null,null,null,null,null,null,null,null,null,0,null,null,"projet_7"]
[null,null,null,null,null,null,null,null,null,null,null,null,null,null,null,null,null,null,null,null,null,null,null,null,null,null,null,null,null,null,null,null,null,0,null,null,"projet_7"]
[null,null,null,null,null,null,null,null,null,null,null,null,null,null,null,null,null,null,null,null,null,null,null,null,null,null,null,null,null,null,null,null,null,0,null,null,"projet_7"]
[null,null,null,null,null,null,null,null,null,null,null,null,null,null,null,null,null,null,null,null,null,null,null,null,null,null,null,null,null,null,null,null,null,0,null,null,"projet_7"]
[null,null,null,null,null,null,null,null,null,null,null,null,null,null,null,null,null,null,null,null,null,null,null,null,null,null,null,null,null,null,null,null,null,0,null,null,"projet_7"]
[null,null,null,null,null,null,null,null,null,null,null,null,null,null,null,null,null,null,null,null,null,null,null,null,null,null,null,null,null,null,null,null,null,0,null,null,"projet_7"]
[null,null,null,null,null,null,null,null,null,null,null,null,null,null,null,null,null,null,null,null,null,null,null,null,null,null,null,null,null,null,null,null,null,0,null,null,"projet_7"]
[null,null,null,null,null,null,null,null,null,null,null,null,null,null,null,null,null,null,null,null,null,null,null,null,null,null,null,null,null,null,null,null,null,0,null,null,"projet_7"]
[null,null,null,null,null,null,null,null,null,null,null,null,null,null,null,null,null,null,null,null,null,null,null,null,null,null,null,null,null,null,null,null,null,0,null,null,"projet_7"]
[null,null,null,null,null,null,null,null,null,null,null,null,null,null,null,null,null,null,null,null,null,null,null,null,null,null,null,null,null,null,null,null,null,0,null,null,"projet_7"]
[null,null,null,null,null,null,null,null,null,null,null,null,null,null,null,null,null,null,null,null,null,null,null,null,null,null,null,null,null,null,null,null,null,0,null,null,"projet_7"]
[null,null,null,null,null,null,null,null,null,null,null,null,null,null,null,null,null,null,null,null,null,null,null,null,null,null,null,null,null,null,null,null,null,0,null,null,"projet_7"]
[null,{"$f":"\"Total - \"&J4","v":"Total - a"},{"$f":"SUMIF($A$16:$A$34,$J4,C$16:C$34)","v":0},{"$f":"SUMIF($A$16:$A$34,$J4,D$16:D$34)","v":0},0,0,0,0,0,0,0,0,0,0,0,0,0,0,0,0,0,0,0,0,0,0,0,0,0,0,0,0,0,0]
[null,"Total - b",{"$f":"SUMIF($A$16:$A$34,$J5,C$16:C$34)","v":0},0,0,0,0,0,0,0,0,0,0,0,0,0,0,0,0,0,0,0,0,0,0,0,0,0,0,0,0,0,0,0]
[null,"Total - c",{"$f":"SUMIF($A$16:$A$34,$J6,C$16:C$34)","v":0},{"$f":"SUMIF($A$16:$A$34,$J$6,D$16:D$34)","v":0},0,0,0,0,0,0,0,0,0,0,0,0,0,0,0,0,0,0,0,0,0,0,0,0,0,0,0,0,0,0]
[null,"Total - ",{"$f":"SUMIF($A$16:$A$34,$J$7,C$16:C$34)","v":0},0,0,0,0,0,0,0,0,0,0,0,0,0,0,0,0,0,0,0,0,0,0,0,0,0,0,0,0,0,0,0]
[null,"Total - ",{"$f":"SUMIF($A$16:$A$34,$J$8,C$16:C$34)","v":0},0,0,0,0,0,0,0,0,0,0,0,0,0,0,0,0,0,0,0,0,0,0,0,0,0,0,0,0,0,0,0]
[null,"Total - ",{"$f":"SUMIF($A$16:$A$34,$J$9,C$16:C$34)","v":0},0,0,0,0,0,0,0,0,0,0,0,0,0,0,0,0,0,0,0,0,0,0,0,0,0,0,0,0,0,0,0]
[null,"Total - ",{"$f":"SUMIF($A$16:$A$34,$J$10,C$16:C$34)","v":0},0,0,0,0,0,0,0,0,0,0,0,0,0,0,0,0,0,0,0,0,0,0,0,0,0,0,0,0,0,0,0]
[null,"Heures HORS SUBVENTION",null,null,null,null,null,null,null,null,null,null,null,null,null,null,null,null,null,null,null,null,null,null,null,null,null,null,null,null,null,null,null,{"$f":"SUM(C42:AG42)","v":0}]
[null,"Total",{"$f":"SUM(C35:C42)","v":0},{"$f":"SUM(D35:D42)","v":0},0,0,0,0,0,0,0,0,0,0,0,0,0,0,0,0,0,0,0,0,0,0,0,0,0,0,0,0,0,{"$f":"SUM(C43:AG43)","v":0}]
[null,"* Normalement une journée = 7,6 heures et 1 an à temps plein = 1.720 heures max"]
[]
[null,null,"Date et signature du collaborateur",null,null,null,null,null,null,null,null,null,null,null,null,null,"Date et signature du responsable hiérarchique"]

{"sheet":"Avril","index":3,"n_rows":46,"n_cols":42,"rows_kept":46,"cut":false,"hidden":false,"merged":[[53,2,53,24],[54,2,58,24],[12,0,12,1],[13,0,13,1],[45,2,45,10],[45,16,45,24],[46,2,50,10],[46,16,50,24],[8,1,8,7],[8,9,8,18],[8,20,8,26],[9,1,9,7],[9,9,9,18],[9,20,9,26],[6,1,6,7],[6,9,6,18],[6,20,6,26],[7,1,7,7],[7,9,7,18],[7,20,7,26],[4,1,4,7],[4,9,4,18],[4,20,4,26],[5,1,5,7],[5,9,5,18],[5,20,5,26],[1,0,2,7],[1,9,2,18],[1,20,2,27],[3,1,3,7],[3,9,3,18],[3,20,3,26]]}
[null,null,null,null,null,null,null,null,null,null,null,null,null,null,null,null,null,null,null,null,null,null,null,null,null,null,null,null,null,null,null,null,null,null,null,null,null,"Janvier",2022,"2022-01-01"]
["Références du collaborateur",null,null,null,null,null,null,null,null,"Référence du/des projets subventionnés + source de financement",null,null,null,null,null,null,null,null,null,null,"Absences",null,null,null,null,null,null,null,null,null,null,null,null,null,null,null,null,"Février",2023,"2022-04-18"]
[null,null,null,null,null,null,null,null,null,null,null,null,null,null,null,null,null,null,null,null,null,null,null,null,null,null,null,null,null,null,null,null,null,null,null,null,null,"Mars",2024,"2022-05-01"]
["Nom du Bénéficiaire/Partenaire",null,null,null,null,null,null,null,null,"a",null,null,null,null,null,null,null,null,null,null,"Weekend",null,null,null,null,null,null,"WE",null,null,null,null,null,null,null,null,null,"Avril",2025,"2022-05-26",{"$f":"J4","v":"a"},"projet_1"]
["Nom du collaborateur",null,null,null,null,null,null,null,null,"b",null,null,null,null,null,null,null,null,null,null,"Maladie",null,null,null,null,null,null,"M",null,null,null,null,null,null,null,null,null,"Mai",2026,"2022-06-06","b","projet_2"]
["Nom du responsable hiérarchique",null,null,null,null,null,null,null,null,"c",null,null,null,null,null,null,null,null,null,null,"Congé légal",null,null,null,null,null,null,"C",null,null,null,null,null,null,null,null,null,"Juin",null,"2022-07-21","c","projet_3"]
["Régime de travail (indiquer %)",1,null,null,null,null,null,null,null,null,null,null,null,null,null,null,null,null,null,null,"Jours fériés",null,null,null,null,null,null,"JF",null,null,null,null,null,null,null,null,null,"Juillet",null,"2022-08-15",0,"projet_4"]
["Plafond annuel",{"$f":"1720*B7","v":1720},null,null,null,null,null,null,null,null,null,null,null,null,null,null,null,null,null,null,"Autres motifs",null,null,null,null,null,null,"A",null,null,null,null,null,null,null,null,null,"Août",null,null,0,"projet_5"]
["Année",2024,null,null,null,null,null,null,null,null,null,null,null,null,null,null,null,null,null,null,"Récupération",null,null,null,null,null,null,"R",null,null,null,null,null,null,null,null,null,"Septembre",null,"2022-11-01",0,"projet_6"]
["Mois",4,null,null,null,null,null,null,null,null,null,null,null,null,null,null,null,null,null,null,"Temps partiel",null,null,null,null,null,null,"TP",null,null,null,null,null,null,null,null,null,"Octobre",null,"2022-12-25",0,"projet_7"]
[null,null,null,null,null,null,null,null,null,null,null,null,null,null,null,null,null,null,null,null,null,null,null,null,null,null,null,null,null,null,null,null,null,null,null,null,null,"Novembre"]
[null,null,null,null,null,null,null,null,null,null,null,null,null,null,null,null,null,null,null,null,null,null,null,null,null,null,null,null,null,null,null,null,null,null,null,null,null,"Décembre"]
["Jours du calendrier",null,{"$f":"DATE(B9,B10,1)","v":"2024-04-01"},{"$f":"C13+1","v":"2024-04-02"},{"$f":"D13+1","v":"2024-04-03"},"2024-04-04","2024-04-05","2024-04-06","2024-04-07","2024-04-08","2024-04-09","2024-04-10","2024-04-11","2024-04-12","2024-04-13","2024-04-14","2024-04-15","2024-04-16","2024-04-17","2024-04-18","2024-04-19","2024-04-20","2024-04-21","2024-04-22","2024-04-23","2024-04-24","2024-04-25","2024-04-26","2024-04-27","2024-04-28","2024-04-29","2024-04-30","2024-05-01","Total"]
["Absences",null,{"$f":"IF(WEEKDAY(C13,2)>5,\"WE\",\"\")","v":""},{"$f":"IF(WEEKDAY(D13,2)>5,\"WE\",\"\")","v":""},{"$f":"IF(WEEKDAY(E13,2)>5,\"WE\",\"\")","v":""},"","","WE","WE","","","","","","WE","WE","","","","","","WE","WE","","","","","","WE","WE","","",""]
["Intitulé du projet","Activités"]
[null,null,null,null,null,null,null,null,null,null,null,null,null,null,null,null,null,null,null,null,null,null,null,null,null,null,null,null,null,null,null,null,null,{"$f":"SUM(C16:AG16)","v":0},null,null,{"$f":"VLOOKUP(A16,$AO$4:$AP$10,2,TRUE)","v":"projet_7"}]
[null,null,null,null,null,null,null,null,null,null,null,null,null,null,null,null,null,null,null,null,null,null,null,null,null,null,null,null,null,null,null,null,null,{"$f":"SUM(C17:AG17)","v":0},null,null,{"$f":"VLOOKUP(A17,$AO$4:$AP$10,2,TRUE)","v":"projet_7"}]
[null,null,null,null,null,null,null,null,null,null,null,null,null,null,null,null,null,null,null,null,null,null,null,null,null,null,null,null,null,null,null,null,null,0,null,null,"projet_7"]
[null,null,null,null,null,null,null,null,null,null,null,null,null,null,null,null,null,null,null,null,null,null,null,null,null,null,null,null,null,null,null,null,null,0,null,null,"projet_7"]
[null,null,null,null,null,null,null,null,null,null,null,null,null,null,null,null,null,null,null,null,null,null,null,null,null,null,null,null,null,null,null,null,null,0,null,null,"projet_7"]
[null,null,null,null,null,null,null,null,null,null,null,null,null,null,null,null,null,null,null,null,null,null,null,null,null,null,null,null,null,null,null,null,null,0,null,null,"projet_7"]
[null,null,null,null,null,null,null,null,null,null,null,null,null,null,null,null,null,null,null,null,null,null,null,null,null,null,null,null,null,null,null,null,null,0,null,null,"projet_7"]
[null,null,null,null,null,null,null,null,null,null,null,null,null,null,null,null,null,null,null,null,null,null,null,null,null,null,null,null,null,null,null,null,null,0,null,null,"projet_7"]
[null,null,null,null,null,null,null,null,null,null,null,null,null,null,null,null,null,null,null,null,null,null,null,null,null,null,null,null,null,null,null,null,null,0,null,null,"projet_7"]
[null,null,null,null,null,null,null,null,null,null,null,null,null,null,null,null,null,null,null,null,null,null,null,null,null,null,null,null,null,null,null,null,null,0,null,null,"projet_7"]
[null,null,null,null,null,null,null,null,null,null,null,null,null,null,null,null,null,null,null,null,null,null,null,null,null,null,null,null,null,null,null,null,null,0,null,null,"projet_7"]
[null,null,null,null,null,null,null,null,null,null,null,null,null,null,null,null,null,null,null,null,null,null,null,null,null,null,null,null,null,null,null,null,null,0,null,null,"projet_7"]
[null,null,null,null,null,null,null,null,null,null,null,null,null,null,null,null,null,null,null,null,null,null,null,null,null,null,null,null,null,null,null,null,null,0,null,null,"projet_7"]
[null,null,null,null,null,null,null,null,null,null,null,null,null,null,null,null,null,null,null,null,null,null,null,null,null,null,null,null,null,null,null,null,null,0,null,null,"projet_7"]
[null,null,null,null,null,null,null,null,null,null,null,null,null,null,null,null,null,null,null,null,null,null,null,null,null,null,null,null,null,null,null,null,null,0,null,null,"projet_7"]
[null,null,null,null,null,null,null,null,null,null,null,null,null,null,null,null,null,null,null,null,null,null,null,null,null,null,null,null,null,null,null,null,null,0,null,null,"projet_7"]
[null,null,null,null,null,null,null,null,null,null,null,null,null,null,null,null,null,null,null,null,null,null,null,null,null,null,null,null,null,null,null,null,null,0,null,null,"projet_7"]
[null,null,null,null,null,null,null,null,null,null,null,null,null,null,null,null,null,null,null,null,null,null,null,null,null,null,null,null,null,null,null,null,null,0,null,null,"projet_7"]
[null,null,null,null,null,null,null,null,null,null,null,null,null,null,null,null,null,null,null,null,null,null,null,null,null,null,null,null,null,null,null,null,null,0,null,null,"projet_7"]
[null,{"$f":"\"Total - \"&J4","v":"Total - a"},{"$f":"SUMIF($A$16:$A$34,$J4,C$16:C$34)","v":0},{"$f":"SUMIF($A$16:$A$34,$J4,D$16:D$34)","v":0},0,0,0,0,0,0,0,0,0,0,0,0,0,0,0,0,0,0,0,0,0,0,0,0,0,0,0,0,0,0]
[null,"Total - b",{"$f":"SUMIF($A$16:$A$34,$J5,C$16:C$34)","v":0},0,0,0,0,0,0,0,0,0,0,0,0,0,0,0,0,0,0,0,0,0,0,0,0,0,0,0,0,0,0,0]
[null,"Total - c",{"$f":"SUMIF($A$16:$A$34,$J6,C$16:C$34)","v":0},{"$f":"SUMIF($A$16:$A$34,$J$6,D$16:D$34)","v":0},0,0,0,0,0,0,0,0,0,0,0,0,0,0,0,0,0,0,0,0,0,0,0,0,0,0,0,0,0,0]
[null,"Total - ",{"$f":"SUMIF($A$16:$A$34,$J$7,C$16:C$34)","v":0},0,0,0,0,0,0,0,0,0,0,0,0,0,0,0,0,0,0,0,0,0,0,0,0,0,0,0,0,0,0,0]
[null,"Total - ",{"$f":"SUMIF($A$16:$A$34,$J$8,C$16:C$34)","v":0},0,0,0,0,0,0,0,0,0,0,0,0,0,0,0,0,0,0,0,0,0,0,0,0,0,0,0,0,0,0,0]
[null,"Total - ",{"$f":"SUMIF($A$16:$A$34,$J$9,C$16:C$34)","v":0},0,0,0,0,0,0,0,0,0,0,0,0,0,0,0,0,0,0,0,0,0,0,0,0,0,0,0,0,0,0,0]
[null,"Total - ",{"$f":"SUMIF($A$16:$A$34,$J$10,C$16:C$34)","v":0},0,0,0,0,0,0,0,0,0,0,0,0,0,0,0,0,0,0,0,0,0,0,0,0,0,0,0,0,0,0,0]
[null,"Heures HORS SUBVENTION",null,null,null,null,null,null,null,null,null,null,null,null,null,null,null,null,null,null,null,null,null,null,null,null,null,null,null,null,null,null,null,{"$f":"SUM(C42:AG42)","v":0}]
[null,"Total",{"$f":"SUM(C35:C42)","v":0},{"$f":"SUM(D35:D42)","v":0},0,0,0,0,0,0,0,0,0,0,0,0,0,0,0,0,0,0,0,0,0,0,0,0,0,0,0,0,0,{"$f":"SUM(C43:AG43)","v":0}]
[null,"* Normalement une journée = 7,6 heures et 1 an à temps plein = 1.720 heures max"]
[]
[null,null,"Date et signature du collaborateur",null,null,null,null,null,null,null,null,null,null,null,null,null,"Date et signature du responsable hiérarchique"]

{"sheet":"Mai","index":4,"n_rows":46,"n_cols":42,"rows_kept":46,"cut":false,"hidden":false,"merged":[[53,2,53,24],[54,2,58,24],[12,0,12,1],[13,0,13,1],[45,2,45,10],[45,16,45,24],[46,2,50,10],[46,16,50,24],[8,1,8,7],[8,9,8,18],[8,20,8,26],[9,1,9,7],[9,9,9,18],[9,20,9,26],[6,1,6,7],[6,9,6,18],[6,20,6,26],[7,1,7,7],[7,9,7,18],[7,20,7,26],[4,1,4,7],[4,9,4,18],[4,20,4,26],[5,1,5,7],[5,9,5,18],[5,20,5,26],[1,0,2,7],[1,9,2,18],[1,20,2,27],[3,1,3,7],[3,9,3,18],[3,20,3,26]]}
[null,null,null,null,null,null,null,null,null,null,null,null,null,null,null,null,null,null,null,null,null,null,null,null,null,null,null,null,null,null,null,null,null,null,null,null,null,"Janvier",2022,"2022-01-01"]
["Références du collaborateur",null,null,null,null,null,null,null,null,"Référence du/des projets subventionnés + source de financement",null,null,null,null,null,null,null,null,null,null,"Absences",null,null,null,null,null,null,null,null,null,null,null,null,null,null,null,null,"Février",2023,"2022-04-18"]
[null,null,null,null,null,null,null,null,null,null,null,null,null,null,null,null,null,null,null,null,null,null,null,null,null,null,null,null,null,null,null,null,null,null,null,null,null,"Mars",2024,"2022-05-01"]
["Nom du Bénéficiaire/Partenaire",null,null,null,null,null,null,null,null,"a",null,null,null,null,null,null,null,null,null,null,"Weekend",null,null,null,null,null,null,"WE",null,null,null,null,null,null,null,null,null,"Avril",2025,"2022-05-26",{"$f":"J4","v":"a"},"projet_1"]
["Nom du collaborateur",null,null,null,null,null,null,null,null,"b",null,null,null,null,null,null,null,null,null,null,"Maladie",null,null,null,null,null,null,"M",null,null,null,null,null,null,null,null,null,"Mai",2026,"2022-06-06","b","projet_2"]
["Nom du responsable hiérarchique",null,null,null,null,null,null,null,null,"c",null,null,null,null,null,null,null,null,null,null,"Congé légal",null,null,null,null,null,null,"C",null,null,null,null,null,null,null,null,null,"Juin",null,"2022-07-21","c","projet_3"]
["Régime de travail (indiquer %)",1,null,null,null,null,null,null,null,null,null,null,null,null,null,null,null,null,null,null,"Jours fériés",null,null,null,null,null,null,"JF",null,null,null,null,null,null,null,null,null,"Juillet",null,"2022-08-15",0,"projet_4"]
["Plafond annuel",{"$f":"1720*B7","v":1720},null,null,null,null,null,null,null,null,null,null,null,null,null,null,null,null,null,null,"Autres motifs",null,null,null,null,null,null,"A",null,null,null,null,null,null,null,null,null,"Août",null,null,0,"projet_5"]
["Année",2024,null,null,null,null,null,null,null,null,null,null,null,null,null,null,null,null,null,null,"Récupération",null,null,null,null,null,null,"R",null,null,null,null,null,null,null,null,null,"Septembre",null,"2022-11-01",0,"projet_6"]
["Mois",5,null,null,null,null,null,null,null,null,null,null,null,null,null,null,null,null,null,null,"Temps partiel",null,null,null,null,null,null,"TP",null,null,null,null,null,null,null,null,null,"Octobre",null,"2022-12-25",0,"projet_7"]
[null,null,null,null,null,null,null,null,null,null,null,null,null,null,null,null,null,null,null,null,null,null,null,null,null,null,null,null,null,null,null,null,null,null,null,null,null,"Novembre"]
[null,null,null,null,null,null,null,null,null,null,null,null,null,null,null,null,null,null,null,null,null,null,null,null,null,null,null,null,null,null,null,null,null,null,null,null,null,"Décembre"]
["Jours du calendrier",null,{"$f":"DATE(B9,B10,1)","v":"2024-05-01"},{"$f":"C13+1","v":"2024-05-02"},{"$f":"D13+1","v":"2024-05-03"},"2024-05-04","2024-05-05","2024-05-06","2024-05-07","2024-05-08","2024-05-09","2024-05-10","2024-05-11","2024-05-12","2024-05-13","2024-05-14","2024-05-15","2024-05-16","2024-05-17","2024-05-18","2024-05-19","2024-05-20","2024-05-21","2024-05-22","2024-05-23","2024-05-24","2024-05-25","2024-05-26","2024-05-27","2024-05-28","2024-05-29","2024-05-30","2024-05-31","Total"]
["Absences",null,{"$f":"IF(WEEKDAY(C13,2)>5,\"WE\",\"\")","v":""},{"$f":"IF(WEEKDAY(D13,2)>5,\"WE\",\"\")","v":""},{"$f":"IF(WEEKDAY(E13,2)>5,\"WE\",\"\")","v":""},"WE","WE","","","","","","WE","WE","","","","","","WE","WE","","","","","","WE","WE","","","","",""]
["Intitulé du projet","Activités"]
[null,null,null,null,null,null,null,null,null,null,null,null,null,null,null,null,null,null,null,null,null,null,null,null,null,null,null,null,null,null,null,null,null,{"$f":"SUM(C16:AG16)","v":0},null,null,{"$f":"VLOOKUP(A16,$AO$4:$AP$10,2,TRUE)","v":"projet_7"}]
[null,null,null,null,null,null,null,null,null,null,null,null,null,null,null,null,null,null,null,null,null,null,null,null,null,null,null,null,null,null,null,null,null,{"$f":"SUM(C17:AG17)","v":0},null,null,{"$f":"VLOOKUP(A17,$AO$4:$AP$10,2,TRUE)","v":"projet_7"}]
[null,null,null,null,null,null,null,null,null,null,null,null,null,null,null,null,null,null,null,null,null,null,null,null,null,null,null,null,null,null,null,null,null,0,null,null,"projet_7"]
[null,null,null,null,null,null,null,null,null,null,null,null,null,null,null,null,null,null,null,null,null,null,null,null,null,null,null,null,null,null,null,null,null,0,null,null,"projet_7"]
[null,null,null,null,null,null,null,null,null,null,null,null,null,null,null,null,null,null,null,null,null,null,null,null,null,null,null,null,null,null,null,null,null,0,null,null,"projet_7"]
[null,null,null,null,null,null,null,null,null,null,null,null,null,null,null,null,null,null,null,null,null,null,null,null,null,null,null,null,null,null,null,null,null,0,null,null,"projet_7"]
[null,null,null,null,null,null,null,null,null,null,null,null,null,null,null,null,null,null,null,null,null,null,null,null,null,null,null,null,null,null,null,null,null,0,null,null,"projet_7"]
[null,null,null,null,null,null,null,null,null,null,null,null,null,null,null,null,null,null,null,null,null,null,null,null,null,null,null,null,null,null,null,null,null,0,null,null,"projet_7"]
[null,null,null,null,null,null,null,null,null,null,null,null,null,null,null,null,null,null,null,null,null,null,null,null,null,null,null,null,null,null,null,null,null,0,null,null,"projet_7"]
[null,null,null,null,null,null,null,null,null,null,null,null,null,null,null,null,null,null,null,null,null,null,null,null,null,null,null,null,null,null,null,null,null,0,null,null,"projet_7"]
[null,null,null,null,null,null,null,null,null,null,null,null,null,null,null,null,null,null,null,null,null,null,null,null,null,null,null,null,null,null,null,null,null,0,null,null,"projet_7"]
[null,null,null,null,null,null,null,null,null,null,null,null,null,null,null,null,null,null,null,null,null,null,null,null,null,null,null,null,null,null,null,null,null,0,null,null,"projet_7"]
[null,null,null,null,null,null,null,null,null,null,null,null,null,null,null,null,null,null,null,null,null,null,null,null,null,null,null,null,null,null,null,null,null,0,null,null,"projet_7"]
[null,null,null,null,null,null,null,null,null,null,null,null,null,null,null,null,null,null,null,null,null,null,null,null,null,null,null,null,null,null,null,null,null,0,null,null,"projet_7"]
[null,null,null,null,null,null,null,null,null,null,null,null,null,null,null,null,null,null,null,null,null,null,null,null,null,null,null,null,null,null,null,null,null,0,null,null,"projet_7"]
[null,null,null,null,null,null,null,null,null,null,null,null,null,null,null,null,null,null,null,null,null,null,null,null,null,null,null,null,null,null,null,null,null,0,null,null,"projet_7"]
[null,null,null,null,null,null,null,null,null,null,null,null,null,null,null,null,null,null,null,null,null,null,null,null,null,null,null,null,null,null,null,null,null,0,null,null,"projet_7"]
[null,null,null,null,null,null,null,null,null,null,null,null,null,null,null,null,null,null,null,null,null,null,null,null,null,null,null,null,null,null,null,null,null,0,null,null,"projet_7"]
[null,null,null,null,null,null,null,null,null,null,null,null,null,null,null,null,null,null,null,null,null,null,null,null,null,null,null,null,null,null,null,null,null,0,null,null,"projet_7"]
[null,{"$f":"\"Total - \"&J4","v":"Total - a"},{"$f":"SUMIF($A$16:$A$34,$J4,C$16:C$34)","v":0},{"$f":"SUMIF($A$16:$A$34,$J4,D$16:D$34)","v":0},0,0,0,0,0,0,0,0,0,0,0,0,0,0,0,0,0,0,0,0,0,0,0,0,0,0,0,0,0,0]
[null,"Total - b",{"$f":"SUMIF($A$16:$A$34,$J5,C$16:C$34)","v":0},0,0,0,0,0,0,0,0,0,0,0,0,0,0,0,0,0,0,0,0,0,0,0,0,0,0,0,0,0,0,0]
[null,"Total - c",{"$f":"SUMIF($A$16:$A$34,$J6,C$16:C$34)","v":0},{"$f":"SUMIF($A$16:$A$34,$J$6,D$16:D$34)","v":0},0,0,0,0,0,0,0,0,0,0,0,0,0,0,0,0,0,0,0,0,0,0,0,0,0,0,0,0,0,0]
[null,"Total - ",{"$f":"SUMIF($A$16:$A$34,$J$7,C$16:C$34)","v":0},0,0,0,0,0,0,0,0,0,0,0,0,0,0,0,0,0,0,0,0,0,0,0,0,0,0,0,0,0,0,0]
[null,"Total - ",{"$f":"SUMIF($A$16:$A$34,$J$8,C$16:C$34)","v":0},0,0,0,0,0,0,0,0,0,0,0,0,0,0,0,0,0,0,0,0,0,0,0,0,0,0,0,0,0,0,0]
[null,"Total - ",{"$f":"SUMIF($A$16:$A$34,$J$9,C$16:C$34)","v":0},0,0,0,0,0,0,0,0,0,0,0,0,0,0,0,0,0,0,0,0,0,0,0,0,0,0,0,0,0,0,0]
[null,"Total - ",{"$f":"SUMIF($A$16:$A$34,$J$10,C$16:C$34)","v":0},0,0,0,0,0,0,0,0,0,0,0,0,0,0,0,0,0,0,0,0,0,0,0,0,0,0,0,0,0,0,0]
[null,"Heures HORS SUBVENTION",null,null,null,null,null,null,null,null,null,null,null,null,null,null,null,null,null,null,null,null,null,null,null,null,null,null,null,null,null,null,null,{"$f":"SUM(C42:AG42)","v":0}]
[null,"Total",{"$f":"SUM(C35:C42)","v":0},{"$f":"SUM(D35:D42)","v":0},0,0,0,0,0,0,0,0,0,0,0,0,0,0,0,0,0,0,0,0,0,0,0,0,0,0,0,0,0,{"$f":"SUM(C43:AG43)","v":0}]
[null,"* Normalement une journée = 7,6 heures et 1 an à temps plein = 1.720 heures max"]
[]
[null,null,"Date et signature du collaborateur",null,null,null,null,null,null,null,null,null,null,null,null,null,"Date et signature du responsable hiérarchique"]

{"sheet":"Juin","index":5,"n_rows":46,"n_cols":42,"rows_kept":46,"cut":false,"hidden":false,"merged":[[53,2,53,24],[54,2,58,24],[12,0,12,1],[13,0,13,1],[45,2,45,10],[45,16,45,24],[46,2,50,10],[46,16,50,24],[8,1,8,7],[8,9,8,18],[8,20,8,26],[9,1,9,7],[9,9,9,18],[9,20,9,26],[6,1,6,7],[6,9,6,18],[6,20,6,26],[7,1,7,7],[7,9,7,18],[7,20,7,26],[4,1,4,7],[4,9,4,18],[4,20,4,26],[5,1,5,7],[5,9,5,18],[5,20,5,26],[1,0,2,7],[1,9,2,18],[1,20,2,27],[3,1,3,7],[3,9,3,18],[3,20,3,26]]}
[null,null,null,null,null,null,null,null,null,null,null,null,null,null,null,null,null,null,null,null,null,null,null,null,null,null,null,null,null,null,null,null,null,null,null,null,null,"Janvier",2022,"2022-01-01"]
["Références du collaborateur",null,null,null,null,null,null,null,null,"Référence du/des projets subventionnés + source de financement",null,null,null,null,null,null,null,null,null,null,"Absences",null,null,null,null,null,null,null,null,null,null,null,null,null,null,null,null,"Février",2023,"2022-04-18"]
[null,null,null,null,null,null,null,null,null,null,null,null,null,null,null,null,null,null,null,null,null,null,null,null,null,null,null,null,null,null,null,null,null,null,null,null,null,"Mars",2024,"2022-05-01"]
["Nom du Bénéficiaire/Partenaire",null,null,null,null,null,null,null,null,"a",null,null,null,null,null,null,null,null,null,null,"Weekend",null,null,null,null,null,null,"WE",null,null,null,null,null,null,null,null,null,"Avril",2025,"2022-05-26",{"$f":"J4","v":"a"},"projet_1"]
["Nom du collaborateur",null,null,null,null,null,null,null,null,"b",null,null,null,null,null,null,null,null,null,null,"Maladie",null,null,null,null,null,null,"M",null,null,null,null,null,null,null,null,null,"Mai",2026,"2022-06-06","b","projet_2"]
["Nom du responsable hiérarchique",null,null,null,null,null,null,null,null,"c",null,null,null,null,null,null,null,null,null,null,"Congé légal",null,null,null,null,null,null,"C",null,null,null,null,null,null,null,null,null,"Juin",null,"2022-07-21","c","projet_3"]
["Régime de travail (indiquer %)",1,null,null,null,null,null,null,null,null,null,null,null,null,null,null,null,null,null,null,"Jours fériés",null,null,null,null,null,null,"JF",null,null,null,null,null,null,null,null,null,"Juillet",null,"2022-08-15",0,"projet_4"]
["Plafond annuel",{"$f":"1720*B7","v":1720},null,null,null,null,null,null,null,null,null,null,null,null,null,null,null,null,null,null,"Autres motifs",null,null,null,null,null,null,"A",null,null,null,null,null,null,null,null,null,"Août",null,null,0,"projet_5"]
["Année",2024,null,null,null,null,null,null,null,null,null,null,null,null,null,null,null,null,null,null,"Récupération",null,null,null,null,null,null,"R",null,null,null,null,null,null,null,null,null,"Septembre",null,"2022-11-01",0,"projet_6"]
["Mois",6,null,null,null,null,null,null,null,null,null,null,null,null,null,null,null,null,null,null,"Temps partiel",null,null,null,null,null,null,"TP",null,null,null,null,null,null,null,null,null,"Octobre",null,"2022-12-25",0,"projet_7"]
[null,null,null,null,null,null,null,null,null,null,null,null,null,null,null,null,null,null,null,null,null,null,null,null,null,null,null,null,null,null,null,null,null,null,null,null,null,"Novembre"]
[null,null,null,null,null,null,null,null,null,null,null,null,null,null,null,null,null,null,null,null,null,null,null,null,null,null,null,null,null,null,null,null,null,null,null,null,null,"Décembre"]
["Jours du calendrier",null,{"$f":"DATE(B9,B10,1)","v":"2024-06-01"},{"$f":"C13+1","v":"2024-06-02"},{"$f":"D13+1","v":"2024-06-03"},"2024-06-04","2024-06-05","2024-06-06","2024-06-07","2024-06-08","2024-06-09","2024-06-10","2024-06-11","2024-06-12","2024-06-13","2024-06-14","2024-06-15","2024-06-16","2024-06-17","2024-06-18","2024-06-19","2024-06-20","2024-06-21","2024-06-22","2024-06-23","2024-06-24","2024-06-25","2024-06-26","2024-06-27","2024-06-28","2024-06-29","2024-06-30","2024-07-01","Total"]
["Absences",null,{"$f":"IF(WEEKDAY(C13,2)>5,\"WE\",\"\")","v":"WE"},{"$f":"IF(WEEKDAY(D13,2)>5,\"WE\",\"\")","v":"WE"},{"$f":"IF(WEEKDAY(E13,2)>5,\"WE\",\"\")","v":""},"","","","","WE","WE","","","","","","WE","WE","","","","","","WE","WE","","","","","","WE","WE",""]
["Intitulé du projet","Activités"]
[null,null,null,null,null,null,null,null,null,null,null,null,null,null,null,null,null,null,null,null,null,null,null,null,null,null,null,null,null,null,null,null,null,{"$f":"SUM(C16:AG16)","v":0},null,null,{"$f":"VLOOKUP(A16,$AO$4:$AP$10,2,TRUE)","v":"projet_7"}]
[null,null,null,null,null,null,null,null,null,null,null,null,null,null,null,null,null,null,null,null,null,null,null,null,null,null,null,null,null,null,null,null,null,{"$f":"SUM(C17:AG17)","v":0},null,null,{"$f":"VLOOKUP(A17,$AO$4:$AP$10,2,TRUE)","v":"projet_7"}]
[null,null,null,null,null,null,null,null,null,null,null,null,null,null,null,null,null,null,null,null,null,null,null,null,null,null,null,null,null,null,null,null,null,0,null,null,"projet_7"]
[null,null,null,null,null,null,null,null,null,null,null,null,null,null,null,null,null,null,null,null,null,null,null,null,null,null,null,null,null,null,null,null,null,0,null,null,"projet_7"]
[null,null,null,null,null,null,null,null,null,null,null,null,null,null,null,null,null,null,null,null,null,null,null,null,null,null,null,null,null,null,null,null,null,0,null,null,"projet_7"]
[null,null,null,null,null,null,null,null,null,null,null,null,null,null,null,null,null,null,null,null,null,null,null,null,null,null,null,null,null,null,null,null,null,0,null,null,"projet_7"]
[null,null,null,null,null,null,null,null,null,null,null,null,null,null,null,null,null,null,null,null,null,null,null,null,null,null,null,null,null,null,null,null,null,0,null,null,"projet_7"]
[null,null,null,null,null,null,null,null,null,null,null,null,null,null,null,null,null,null,null,null,null,null,null,null,null,null,null,null,null,null,null,null,null,0,null,null,"projet_7"]
[null,null,null,null,null,null,null,null,null,null,null,null,null,null,null,null,null,null,null,null,null,null,null,null,null,null,null,null,null,null,null,null,null,0,null,null,"projet_7"]
[null,null,null,null,null,null,null,null,null,null,null,null,null,null,null,null,null,null,null,null,null,null,null,null,null,null,null,null,null,null,null,null,null,0,null,null,"projet_7"]
[null,null,null,null,null,null,null,null,null,null,null,null,null,null,null,null,null,null,null,null,null,null,null,null,null,null,null,null,null,null,null,null,null,0,null,null,"projet_7"]
[null,null,null,null,null,null,null,null,null,null,null,null,null,null,null,null,null,null,null,null,null,null,null,null,null,null,null,null,null,null,null,null,null,0,null,null,"projet_7"]
[null,null,null,null,null,null,null,null,null,null,null,null,null,null,null,null,null,null,null,null,null,null,null,null,null,null,null,null,null,null,null,null,null,0,null,null,"projet_7"]
[null,null,null,null,null,null,null,null,null,null,null,null,null,null,null,null,null,null,null,null,null,null,null,null,null,null,null,null,null,null,null,null,null,0,null,null,"projet_7"]
[null,null,null,null,null,null,null,null,null,null,null,null,null,null,null,null,null,null,null,null,null,null,null,null,null,null,null,null,null,null,null,null,null,0,null,null,"projet_7"]
[null,null,null,null,null,null,null,null,null,null,null,null,null,null,null,null,null,null,null,null,null,null,null,null,null,null,null,null,null,null,null,null,null,0,null,null,"projet_7"]
[null,null,null,null,null,null,null,null,null,null,null,null,null,null,null,null,null,null,null,null,null,null,null,null,null,null,null,null,null,null,null,null,null,0,null,null,"projet_7"]
[null,null,null,null,null,null,null,null,null,null,null,null,null,null,null,null,null,null,null,null,null,null,null,null,null,null,null,null,null,null,null,null,null,0,null,null,"projet_7"]
[null,null,null,null,null,null,null,null,null,null,null,null,null,null,null,null,null,null,null,null,null,null,null,null,null,null,null,null,null,null,null,null,null,0,null,null,"projet_7"]
[null,{"$f":"\"Total - \"&J4","v":"Total - a"},{"$f":"SUMIF($A$16:$A$34,$J4,C$16:C$34)","v":0},{"$f":"SUMIF($A$16:$A$34,$J4,D$16:D$34)","v":0},0,0,0,0,0,0,0,0,0,0,0,0,0,0,0,0,0,0,0,0,0,0,0,0,0,0,0,0,0,0]
[null,"Total - b",{"$f":"SUMIF($A$16:$A$34,$J5,C$16:C$34)","v":0},0,0,0,0,0,0,0,0,0,0,0,0,0,0,0,0,0,0,0,0,0,0,0,0,0,0,0,0,0,0,0]
[null,"Total - c",{"$f":"SUMIF($A$16:$A$34,$J6,C$16:C$34)","v":0},{"$f":"SUMIF($A$16:$A$34,$J$6,D$16:D$34)","v":0},0,0,0,0,0,0,0,0,0,0,0,0,0,0,0,0,0,0,0,0,0,0,0,0,0,0,0,0,0,0]
[null,"Total - ",{"$f":"SUMIF($A$16:$A$34,$J$7,C$16:C$34)","v":0},0,0,0,0,0,0,0,0,0,0,0,0,0,0,0,0,0,0,0,0,0,0,0,0,0,0,0,0,0,0,0]
[null,"Total - ",{"$f":"SUMIF($A$16:$A$34,$J$8,C$16:C$34)","v":0},0,0,0,0,0,0,0,0,0,0,0,0,0,0,0,0,0,0,0,0,0,0,0,0,0,0,0,0,0,0,0]
[null,"Total - ",{"$f":"SUMIF($A$16:$A$34,$J$9,C$16:C$34)","v":0},0,0,0,0,0,0,0,0,0,0,0,0,0,0,0,0,0,0,0,0,0,0,0,0,0,0,0,0,0,0,0]
[null,"Total - ",{"$f":"SUMIF($A$16:$A$34,$J$10,C$16:C$34)","v":0},0,0,0,0,0,0,0,0,0,0,0,0,0,0,0,0,0,0,0,0,0,0,0,0,0,0,0,0,0,0,0]
[null,"Heures HORS SUBVENTION",null,null,null,null,null,null,null,null,null,null,null,null,null,null,null,null,null,null,null,null,null,null,null,null,null,null,null,null,null,null,null,{"$f":"SUM(C42:AG42)","v":0}]
[null,"Total",{"$f":"SUM(C35:C42)","v":0},{"$f":"SUM(D35:D42)","v":0},0,0,0,0,0,0,0,0,0,0,0,0,0,0,0,0,0,0,0,0,0,0,0,0,0,0,0,0,0,{"$f":"SUM(C43:AG43)","v":0}]
[null,"* Normalement une journée = 7,6 heures et 1 an à temps plein = 1.720 heures max"]
[]
[null,null,"Date et signature du collaborateur",null,null,null,null,null,null,null,null,null,null,null,null,null,"Date et signature du responsable hiérarchique"]

{"sheet":"Juillet","index":6,"n_rows":46,"n_cols":42,"rows_kept":46,"cut":false,"hidden":false,"merged":[[53,2,53,24],[54,2,58,24],[12,0,12,1],[13,0,13,1],[45,2,45,10],[45,16,45,24],[46,2,50,10],[46,16,50,24],[8,1,8,7],[8,9,8,18],[8,20,8,26],[9,1,9,7],[9,9,9,18],[9,20,9,26],[6,1,6,7],[6,9,6,18],[6,20,6,26],[7,1,7,7],[7,9,7,18],[7,20,7,26],[4,1,4,7],[4,9,4,18],[4,20,4,26],[5,1,5,7],[5,9,5,18],[5,20,5,26],[1,0,2,7],[1,9,2,18],[1,20,2,27],[3,1,3,7],[3,9,3,18],[3,20,3,26]]}
[null,null,null,null,null,null,null,null,null,null,null,null,null,null,null,null,null,null,null,null,null,null,null,null,null,null,null,null,null,null,null,null,null,null,null,null,null,"Janvier",2022,"2022-01-01"]
["Références du collaborateur",null,null,null,null,null,null,null,null,"Référence du/des projets subventionnés + source de financement",null,null,null,null,null,null,null,null,null,null,"Absences",null,null,null,null,null,null,null,null,null,null,null,null,null,null,null,null,"Février",2023,"2022-04-18"]
[null,null,null,null,null,null,null,null,null,null,null,null,null,null,null,null,null,null,null,null,null,null,null,null,null,null,null,null,null,null,null,null,null,null,null,null,null,"Mars",2024,"2022-05-01"]
["Nom du Bénéficiaire/Partenaire",null,null,null,null,null,null,null,null,"a",null,null,null,null,null,null,null,null,null,null,"Weekend",null,null,null,null,null,null,"WE",null,null,null,null,null,null,null,null,null,"Avril",2025,"2022-05-26",{"$f":"J4","v":"a"},"projet_1"]
["Nom du collaborateur",null,null,null,null,null,null,null,null,"b",null,null,null,null,null,null,null,null,null,null,"Maladie",null,null,null,null,null,null,"M",null,null,null,null,null,null,null,null,null,"Mai",2026,"2022-06-06","b","projet_2"]
["Nom du responsable hiérarchique",null,null,null,null,null,null,null,null,"c",null,null,null,null,null,null,null,null,null,null,"Congé légal",null,null,null,null,null,null,"C",null,null,null,null,null,null,null,null,null,"Juin",null,"2022-07-21","c","projet_3"]
["Régime de travail (indiquer %)",1,null,null,null,null,null,null,null,null,null,null,null,null,null,null,null,null,null,null,"Jours fériés",null,null,null,null,null,null,"JF",null,null,null,null,null,null,null,null,null,"Juillet",null,"2022-08-15",0,"projet_4"]
["Plafond annuel",{"$f":"1720*B7","v":1720},null,null,null,null,null,null,null,null,null,null,null,null,null,null,null,null,null,null,"Autres motifs",null,null,null,null,null,null,"A",null,null,null,null,null,null,null,null,null,"Août",null,null,0,"projet_5"]
["Année",2024,null,null,null,null,null,null,null,null,null,null,null,null,null,null,null,null,null,null,"Récupération",null,null,null,null,null,null,"R",null,null,null,null,null,null,null,null,null,"Septembre",null,"2022-11-01",0,"projet_6"]
["Mois",7,null,null,null,null,null,null,null,null,null,null,null,null,null,null,null,null,null,null,"Temps partiel",null,null,null,null,null,null,"TP",null,null,null,null,null,null,null,null,null,"Octobre",null,"2022-12-25",0,"projet_7"]
[null,null,null,null,null,null,null,null,null,null,null,null,null,null,null,null,null,null,null,null,null,null,null,null,null,null,null,null,null,null,null,null,null,null,null,null,null,"Novembre"]
[null,null,null,null,null,null,null,null,null,null,null,null,null,null,null,null,null,null,null,null,null,null,null,null,null,null,null,null,null,null,null,null,null,null,null,null,null,"Décembre"]
["Jours du calendrier",null,{"$f":"DATE(B9,B10,1)","v":"2024-07-01"},{"$f":"C13+1","v":"2024-07-02"},{"$f":"D13+1","v":"2024-07-03"},"2024-07-04","2024-07-05","2024-07-06","2024-07-07","2024-07-08","2024-07-09","2024-07-10","2024-07-11","2024-07-12","2024-07-13","2024-07-14","2024-07-15","2024-07-16","2024-07-17","2024-07-18","2024-07-19","2024-07-20","2024-07-21","2024-07-22","2024-07-23","2024-07-24","2024-07-25","2024-07-26","2024-07-27","2024-07-28","2024-07-29","2024-07-30","2024-07-31","Total"]
["Absences",null,{"$f":"IF(WEEKDAY(C13,2)>5,\"WE\",\"\")","v":""},{"$f":"IF(WEEKDAY(D13,2)>5,\"WE\",\"\")","v":""},{"$f":"IF(WEEKDAY(E13,2)>5,\"WE\",\"\")","v":""},"","","WE","WE","","","","","","WE","WE","","","","","","WE","WE","","","","","","WE","WE","","",""]
["Intitulé du projet","Activités"]
[null,null,null,null,null,null,null,null,null,null,null,null,null,null,null,null,null,null,null,null,null,null,null,null,null,null,null,null,null,null,null,null,null,{"$f":"SUM(C16:AG16)","v":0},null,null,{"$f":"VLOOKUP(A16,$AO$4:$AP$10,2,TRUE)","v":"projet_7"}]
[null,null,null,null,null,null,null,null,null,null,null,null,null,null,null,null,null,null,null,null,null,null,null,null,null,null,null,null,null,null,null,null,null,{"$f":"SUM(C17:AG17)","v":0},null,null,{"$f":"VLOOKUP(A17,$AO$4:$AP$10,2,TRUE)","v":"projet_7"}]
[null,null,null,null,null,null,null,null,null,null,null,null,null,null,null,null,null,null,null,null,null,null,null,null,null,null,null,null,null,null,null,null,null,0,null,null,"projet_7"]
[null,null,null,null,null,null,null,null,null,null,null,null,null,null,null,null,null,null,null,null,null,null,null,null,null,null,null,null,null,null,null,null,null,0,null,null,"projet_7"]
[null,null,null,null,null,null,null,null,null,null,null,null,null,null,null,null,null,null,null,null,null,null,null,null,null,null,null,null,null,null,null,null,null,0,null,null,"projet_7"]
[null,null,null,null,null,null,null,null,null,null,null,null,null,null,null,null,null,null,null,null,null,null,null,null,null,null,null,null,null,null,null,null,null,0,null,null,"projet_7"]
[null,null,null,null,null,null,null,null,null,null,null,null,null,null,null,null,null,null,null,null,null,null,null,null,null,null,null,null,null,null,null,null,null,0,null,null,"projet_7"]
[null,null,null,null,null,null,null,null,null,null,null,null,null,null,null,null,null,null,null,null,null,null,null,null,null,null,null,null,null,null,null,null,null,0,null,null,"projet_7"]
[null,null,null,null,null,null,null,null,null,null,null,null,null,null,null,null,null,null,null,null,null,null,null,null,null,null,null,null,null,null,null,null,null,0,null,null,"projet_7"]
[null,null,null,null,null,null,null,null,null,null,null,null,null,null,null,null,null,null,null,null,null,null,null,null,null,null,null,null,null,null,null,null,null,0,null,null,"projet_7"]
[null,null,null,null,null,null,null,null,null,null,null,null,null,null,null,null,null,null,null,null,null,null,null,null,null,null,null,null,null,null,null,null,null,0,null,null,"projet_7"]
[null,null,null,null,null,null,null,null,null,null,null,null,null,null,null,null,null,null,null,null,null,null,null,null,null,null,null,null,null,null,null,null,null,0,null,null,"projet_7"]
[null,null,null,null,null,null,null,null,null,null,null,null,null,null,null,null,null,null,null,null,null,null,null,null,null,null,null,null,null,null,null,null,null,0,null,null,"projet_7"]
[null,null,null,null,null,null,null,null,null,null,null,null,null,null,null,null,null,null,null,null,null,null,null,null,null,null,null,null,null,null,null,null,null,0,null,null,"projet_7"]
[null,null,null,null,null,null,null,null,null,null,null,null,null,null,null,null,null,null,null,null,null,null,null,null,null,null,null,null,null,null,null,null,null,0,null,null,"projet_7"]
[null,null,null,null,null,null,null,null,null,null,null,null,null,null,null,null,null,null,null,null,null,null,null,null,null,null,null,null,null,null,null,null,null,0,null,null,"projet_7"]
[null,null,null,null,null,null,null,null,null,null,null,null,null,null,null,null,null,null,null,null,null,null,null,null,null,null,null,null,null,null,null,null,null,0,null,null,"projet_7"]
[null,null,null,null,null,null,null,null,null,null,null,null,null,null,null,null,null,null,null,null,null,null,null,null,null,null,null,null,null,null,null,null,null,0,null,null,"projet_7"]
[null,null,null,null,null,null,null,null,null,null,null,null,null,null,null,null,null,null,null,null,null,null,null,null,null,null,null,null,null,null,null,null,null,0,null,null,"projet_7"]
[null,{"$f":"\"Total - \"&J4","v":"Total - a"},{"$f":"SUMIF($A$16:$A$34,$J4,C$16:C$34)","v":0},{"$f":"SUMIF($A$16:$A$34,$J4,D$16:D$34)","v":0},0,0,0,0,0,0,0,0,0,0,0,0,0,0,0,0,0,0,0,0,0,0,0,0,0,0,0,0,0,0]
[null,"Total - b",{"$f":"SUMIF($A$16:$A$34,$J5,C$16:C$34)","v":0},0,0,0,0,0,0,0,0,0,0,0,0,0,0,0,0,0,0,0,0,0,0,0,0,0,0,0,0,0,0,0]
[null,"Total - c",{"$f":"SUMIF($A$16:$A$34,$J6,C$16:C$34)","v":0},{"$f":"SUMIF($A$16:$A$34,$J$6,D$16:D$34)","v":0},0,0,0,0,0,0,0,0,0,0,0,0,0,0,0,0,0,0,0,0,0,0,0,0,0,0,0,0,0,0]
[null,"Total - ",{"$f":"SUMIF($A$16:$A$34,$J$7,C$16:C$34)","v":0},0,0,0,0,0,0,0,0,0,0,0,0,0,0,0,0,0,0,0,0,0,0,0,0,0,0,0,0,0,0,0]
[null,"Total - ",{"$f":"SUMIF($A$16:$A$34,$J$8,C$16:C$34)","v":0},0,0,0,0,0,0,0,0,0,0,0,0,0,0,0,0,0,0,0,0,0,0,0,0,0,0,0,0,0,0,0]
[null,"Total - ",{"$f":"SUMIF($A$16:$A$34,$J$9,C$16:C$34)","v":0},0,0,0,0,0,0,0,0,0,0,0,0,0,0,0,0,0,0,0,0,0,0,0,0,0,0,0,0,0,0,0]
[null,"Total - ",{"$f":"SUMIF($A$16:$A$34,$J$10,C$16:C$34)","v":0},0,0,0,0,0,0,0,0,0,0,0,0,0,0,0,0,0,0,0,0,0,0,0,0,0,0,0,0,0,0,0]
[null,"Heures HORS SUBVENTION",null,null,null,null,null,null,null,null,null,null,null,null,null,null,null,null,null,null,null,null,null,null,null,null,null,null,null,null,null,null,null,{"$f":"SUM(C42:AG42)","v":0}]
[null,"Total",{"$f":"SUM(C35:C42)","v":0},{"$f":"SUM(D35:D42)","v":0},0,0,0,0,0,0,0,0,0,0,0,0,0,0,0,0,0,0,0,0,0,0,0,0,0,0,0,0,0,{"$f":"SUM(C43:AG43)","v":0}]
[null,"* Normalement une journée = 7,6 heures et 1 an à temps plein = 1.720 heures max"]
[]
[null,null,"Date et signature du collaborateur",null,null,null,null,null,null,null,null,null,null,null,null,null,"Date et signature du responsable hiérarchique"]

{"sheet":"Août","index":7,"n_rows":46,"n_cols":42,"rows_kept":46,"cut":false,"hidden":false,"merged":[[53,2,53,24],[54,2,58,24],[12,0,12,1],[13,0,13,1],[45,2,45,10],[45,16,45,24],[46,2,50,10],[46,16,50,24],[8,1,8,7],[8,9,8,18],[8,20,8,26],[9,1,9,7],[9,9,9,18],[9,20,9,26],[6,1,6,7],[6,9,6,18],[6,20,6,26],[7,1,7,7],[7,9,7,18],[7,20,7,26],[4,1,4,7],[4,9,4,18],[4,20,4,26],[5,1,5,7],[5,9,5,18],[5,20,5,26],[1,0,2,7],[1,9,2,18],[1,20,2,27],[3,1,3,7],[3,9,3,18],[3,20,3,26]]}
[null,null,null,null,null,null,null,null,null,null,null,null,null,null,null,null,null,null,null,null,null,null,null,null,null,null,null,null,null,null,null,null,null,null,null,null,null,"Janvier",2022,"2022-01-01"]
["Références du collaborateur",null,null,null,null,null,null,null,null,"Référence du/des projets subventionnés + source de financement",null,null,null,null,null,null,null,null,null,null,"Absences",null,null,null,null,null,null,null,null,null,null,null,null,null,null,null,null,"Février",2023,"2022-04-18"]
[null,null,null,null,null,null,null,null,null,null,null,null,null,null,null,null,null,null,null,null,null,null,null,null,null,null,null,null,null,null,null,null,null,null,null,null,null,"Mars",2024,"2022-05-01"]
["Nom du Bénéficiaire/Partenaire",null,null,null,null,null,null,null,null,"a",null,null,null,null,null,null,null,null,null,null,"Weekend",null,null,null,null,null,null,"WE",null,null,null,null,null,null,null,null,null,"Avril",2025,"2022-05-26",{"$f":"J4","v":"a"},"projet_1"]
["Nom du collaborateur",null,null,null,null,null,null,null,null,"b",null,null,null,null,null,null,null,null,null,null,"Maladie",null,null,null,null,null,null,"M",null,null,null,null,null,null,null,null,null,"Mai",2026,"2022-06-06","b","projet_2"]
["Nom du responsable hiérarchique",null,null,null,null,null,null,null,null,"c",null,null,null,null,null,null,null,null,null,null,"Congé légal",null,null,null,null,null,null,"C",null,null,null,null,null,null,null,null,null,"Juin",null,"2022-07-21","c","projet_3"]
["Régime de travail (indiquer %)",1,null,null,null,null,null,null,null,null,null,null,null,null,null,null,null,null,null,null,"Jours fériés",null,null,null,null,null,null,"JF",null,null,null,null,null,null,null,null,null,"Juillet",null,"2022-08-15",0,"projet_4"]
["Plafond annuel",{"$f":"1720*B7","v":1720},null,null,null,null,null,null,null,null,null,null,null,null,null,null,null,null,null,null,"Autres motifs",null,null,null,null,null,null,"A",null,null,null,null,null,null,null,null,null,"Août",null,null,0,"projet_5"]
["Année",2024,null,null,null,null,null,null,null,null,null,null,null,null,null,null,null,null,null,null,"Récupération",null,null,null,null,null,null,"R",null,null,null,null,null,null,null,null,null,"Septembre",null,"2022-11-01",0,"projet_6"]
["Mois",8,null,null,null,null,null,null,null,null,null,null,null,null,null,null,null,null,null,null,"Temps partiel",null,null,null,null,null,null,"TP",null,null,null,null,null,null,null,null,null,"Octobre",null,"2022-12-25",0,"projet_7"]
[null,null,null,null,null,null,null,null,null,null,null,null,null,null,null,null,null,null,null,null,null,null,null,null,null,null,null,null,null,null,null,null,null,null,null,null,null,"Novembre"]
[null,null,null,null,null,null,null,null,null,null,null,null,null,null,null,null,null,null,null,null,null,null,null,null,null,null,null,null,null,null,null,null,null,null,null,null,null,"Décembre"]
["Jours du calendrier",null,{"$f":"DATE(B9,B10,1)","v":"2024-08-01"},{"$f":"C13+1","v":"2024-08-02"},{"$f":"D13+1","v":"2024-08-03"},"2024-08-04","2024-08-05","2024-08-06","2024-08-07","2024-08-08","2024-08-09","2024-08-10","2024-08-11","2024-08-12","2024-08-13","2024-08-14","2024-08-15","2024-08-16","2024-08-17","2024-08-18","2024-08-19","2024-08-20","2024-08-21","2024-08-22","2024-08-23","2024-08-24","2024-08-25","2024-08-26","2024-08-27","2024-08-28","2024-08-29","2024-08-30","2024-08-31","Total"]
["Absences",null,{"$f":"IF(WEEKDAY(C13,2)>5,\"WE\",\"\")","v":""},{"$f":"IF(WEEKDAY(D13,2)>5,\"WE\",\"\")","v":""},{"$f":"IF(WEEKDAY(E13,2)>5,\"WE\",\"\")","v":"WE"},"WE","","","","","","WE","WE","","","","","","WE","WE","","","","","","WE","WE","","","","","","WE"]
["Intitulé du projet","Activités"]
[null,null,null,null,null,null,null,null,null,null,null,null,null,null,null,null,null,null,null,null,null,null,null,null,null,null,null,null,null,null,null,null,null,{"$f":"SUM(C16:AG16)","v":0},null,null,{"$f":"VLOOKUP(A16,$AO$4:$AP$10,2,TRUE)","v":"projet_7"}]
[null,null,null,null,null,null,null,null,null,null,null,null,null,null,null,null,null,null,null,null,null,null,null,null,null,null,null,null,null,null,null,null,null,{"$f":"SUM(C17:AG17)","v":0},null,null,{"$f":"VLOOKUP(A17,$AO$4:$AP$10,2,TRUE)","v":"projet_7"}]
[null,null,null,null,null,null,null,null,null,null,null,null,null,null,null,null,null,null,null,null,null,null,null,null,null,null,null,null,null,null,null,null,null,0,null,null,"projet_7"]
[null,null,null,null,null,null,null,null,null,null,null,null,null,null,null,null,null,null,null,null,null,null,null,null,null,null,null,null,null,null,null,null,null,0,null,null,"projet_7"]
[null,null,null,null,null,null,null,null,null,null,null,null,null,null,null,null,null,null,null,null,null,null,null,null,null,null,null,null,null,null,null,null,null,0,null,null,"projet_7"]
[null,null,null,null,null,null,null,null,null,null,null,null,null,null,null,null,null,null,null,null,null,null,null,null,null,null,null,null,null,null,null,null,null,0,null,null,"projet_7"]
[null,null,null,null,null,null,null,null,null,null,null,null,null,null,null,null,null,null,null,null,null,null,null,null,null,null,null,null,null,null,null,null,null,0,null,null,"projet_7"]
[null,null,null,null,null,null,null,null,null,null,null,null,null,null,null,null,null,null,null,null,null,null,null,null,null,null,null,null,null,null,null,null,null,0,null,null,"projet_7"]
[null,null,null,null,null,null,null,null,null,null,null,null,null,null,null,null,null,null,null,null,null,null,null,null,null,null,null,null,null,null,null,null,null,0,null,null,"projet_7"]
[null,null,null,null,null,null,null,null,null,null,null,null,null,null,null,null,null,null,null,null,null,null,null,null,null,null,null,null,null,null,null,null,null,0,null,null,"projet_7"]
[null,null,null,null,null,null,null,null,null,null,null,null,null,null,null,null,null,null,null,null,null,null,null,null,null,null,null,null,null,null,null,null,null,0,null,null,"projet_7"]
[null,null,null,null,null,null,null,null,null,null,null,null,null,null,null,null,null,null,null,null,null,null,null,null,null,null,null,null,null,null,null,null,null,0,null,null,"projet_7"]
[null,null,null,null,null,null,null,null,null,null,null,null,null,null,null,null,null,null,null,null,null,null,null,null,null,null,null,null,null,null,null,null,null,0,null,null,"projet_7"]
[null,null,null,null,null,null,null,null,null,null,null,null,null,null,null,null,null,null,null,null,null,null,null,null,null,null,null,null,null,null,null,null,null,0,null,null,"projet_7"]
[null,null,null,null,null,null,null,null,null,null,null,null,null,null,null,null,null,null,null,null,null,null,null,null,null,null,null,null,null,null,null,null,null,0,null,null,"projet_7"]
[null,null,null,null,null,null,null,null,null,null,null,null,null,null,null,null,null,null,null,null,null,null,null,null,null,null,null,null,null,null,null,null,null,0,null,null,"projet_7"]
[null,null,null,null,null,null,null,null,null,null,null,null,null,null,null,null,null,null,null,null,null,null,null,null,null,null,null,null,null,null,null,null,null,0,null,null,"projet_7"]
[null,null,null,null,null,null,null,null,null,null,null,null,null,null,null,null,null,null,null,null,null,null,null,null,null,null,null,null,null,null,null,null,null,0,null,null,"projet_7"]
[null,null,null,null,null,null,null,null,null,null,null,null,null,null,null,null,null,null,null,null,null,null,null,null,null,null,null,null,null,null,null,null,null,0,null,null,"projet_7"]
[null,{"$f":"\"Total - \"&J4","v":"Total - a"},{"$f":"SUMIF($A$16:$A$34,$J4,C$16:C$34)","v":0},{"$f":"SUMIF($A$16:$A$34,$J4,D$16:D$34)","v":0},0,0,0,0,0,0,0,0,0,0,0,0,0,0,0,0,0,0,0,0,0,0,0,0,0,0,0,0,0,0]
[null,"Total - b",{"$f":"SUMIF($A$16:$A$34,$J5,C$16:C$34)","v":0},0,0,0,0,0,0,0,0,0,0,0,0,0,0,0,0,0,0,0,0,0,0,0,0,0,0,0,0,0,0,0]
[null,"Total - c",{"$f":"SUMIF($A$16:$A$34,$J6,C$16:C$34)","v":0},{"$f":"SUMIF($A$16:$A$34,$J$6,D$16:D$34)","v":0},0,0,0,0,0,0,0,0,0,0,0,0,0,0,0,0,0,0,0,0,0,0,0,0,0,0,0,0,0,0]
[null,"Total - ",{"$f":"SUMIF($A$16:$A$34,$J$7,C$16:C$34)","v":0},0,0,0,0,0,0,0,0,0,0,0,0,0,0,0,0,0,0,0,0,0,0,0,0,0,0,0,0,0,0,0]
[null,"Total - ",{"$f":"SUMIF($A$16:$A$34,$J$8,C$16:C$34)","v":0},0,0,0,0,0,0,0,0,0,0,0,0,0,0,0,0,0,0,0,0,0,0,0,0,0,0,0,0,0,0,0]
[null,"Total - ",{"$f":"SUMIF($A$16:$A$34,$J$9,C$16:C$34)","v":0},0,0,0,0,0,0,0,0,0,0,0,0,0,0,0,0,0,0,0,0,0,0,0,0,0,0,0,0,0,0,0]
[null,"Total - ",{"$f":"SUMIF($A$16:$A$34,$J$10,C$16:C$34)","v":0},0,0,0,0,0,0,0,0,0,0,0,0,0,0,0,0,0,0,0,0,0,0,0,0,0,0,0,0,0,0,0]
[null,"Heures HORS SUBVENTION",null,null,null,null,null,null,null,null,null,null,null,null,null,null,null,null,null,null,null,null,null,null,null,null,null,null,null,null,null,null,null,{"$f":"SUM(C42:AG42)","v":0}]
[null,"Total",{"$f":"SUM(C35:C42)","v":0},{"$f":"SUM(D35:D42)","v":0},0,0,0,0,0,0,0,0,0,0,0,0,0,0,0,0,0,0,0,0,0,0,0,0,0,0,0,0,0,{"$f":"SUM(C43:AG43)","v":0}]
[null,"* Normalement une journée = 7,6 heures et 1 an à temps plein = 1.720 heures max"]
[]
[null,null,"Date et signature du collaborateur",null,null,null,null,null,null,null,null,null,null,null,null,null,"Date et signature du responsable hiérarchique"]

{"sheet":"Septembre","index":8,"n_rows":46,"n_cols":42,"rows_kept":46,"cut":false,"hidden":false,"merged":[[53,2,53,24],[54,2,58,24],[12,0,12,1],[13,0,13,1],[45,2,45,10],[45,16,45,24],[46,2,50,10],[46,16,50,24],[8,1,8,7],[8,9,8,18],[8,20,8,26],[9,1,9,7],[9,9,9,18],[9,20,9,26],[6,1,6,7],[6,9,6,18],[6,20,6,26],[7,1,7,7],[7,9,7,18],[7,20,7,26],[4,1,4,7],[4,9,4,18],[4,20,4,26],[5,1,5,7],[5,9,5,18],[5,20,5,26],[1,0,2,7],[1,9,2,18],[1,20,2,27],[3,1,3,7],[3,9,3,18],[3,20,3,26]]}
[null,null,null,null,null,null,null,null,null,null,null,null,null,null,null,null,null,null,null,null,null,null,null,null,null,null,null,null,null,null,null,null,null,null,null,null,null,"Janvier",2022,"2022-01-01"]
["Références du collaborateur",null,null,null,null,null,null,null,null,"Référence du/des projets subventionnés + source de financement",null,null,null,null,null,null,null,null,null,null,"Absences",null,null,null,null,null,null,null,null,null,null,null,null,null,null,null,null,"Février",2023,"2022-04-18"]
[null,null,null,null,null,null,null,null,null,null,null,null,null,null,null,null,null,null,null,null,null,null,null,null,null,null,null,null,null,null,null,null,null,null,null,null,null,"Mars",2024,"2022-05-01"]
["Nom du Bénéficiaire/Partenaire",null,null,null,null,null,null,null,null,"a",null,null,null,null,null,null,null,null,null,null,"Weekend",null,null,null,null,null,null,"WE",null,null,null,null,null,null,null,null,null,"Avril",2025,"2022-05-26",{"$f":"J4","v":"a"},"projet_1"]
["Nom du collaborateur",null,null,null,null,null,null,null,null,"b",null,null,null,null,null,null,null,null,null,null,"Maladie",null,null,null,null,null,null,"M",null,null,null,null,null,null,null,null,null,"Mai",2026,"2022-06-06","b","projet_2"]
["Nom du responsable hiérarchique",null,null,null,null,null,null,null,null,"c",null,null,null,null,null,null,null,null,null,null,"Congé légal",null,null,null,null,null,null,"C",null,null,null,null,null,null,null,null,null,"Juin",null,"2022-07-21","c","projet_3"]
["Régime de travail (indiquer %)",1,null,null,null,null,null,null,null,null,null,null,null,null,null,null,null,null,null,null,"Jours fériés",null,null,null,null,null,null,"JF",null,null,null,null,null,null,null,null,null,"Juillet",null,"2022-08-15",0,"projet_4"]
["Plafond annuel",{"$f":"1720*B7","v":1720},null,null,null,null,null,null,null,null,null,null,null,null,null,null,null,null,null,null,"Autres motifs",null,null,null,null,null,null,"A",null,null,null,null,null,null,null,null,null,"Août",null,null,0,"projet_5"]
["Année",2024,null,null,null,null,null,null,null,null,null,null,null,null,null,null,null,null,null,null,"Récupération",null,null,null,null,null,null,"R",null,null,null,null,null,null,null,null,null,"Septembre",null,"2022-11-01",0,"projet_6"]
["Mois",9,null,null,null,null,null,null,null,null,null,null,null,null,null,null,null,null,null,null,"Temps partiel",null,null,null,null,null,null,"TP",null,null,null,null,null,null,null,null,null,"Octobre",null,"2022-12-25",0,"projet_7"]
[null,null,null,null,null,null,null,null,null,null,null,null,null,null,null,null,null,null,null,null,null,null,null,null,null,null,null,null,null,null,null,null,null,null,null,null,null,"Novembre"]
[null,null,null,null,null,null,null,null,null,null,null,null,null,null,null,null,null,null,null,null,null,null,null,null,null,null,null,null,null,null,null,null,null,null,null,null,null,"Décembre"]
["Jours du calendrier",null,{"$f":"DATE(B9,B10,1)","v":"2024-09-01"},{"$f":"C13+1","v":"2024-09-02"},{"$f":"D13+1","v":"2024-09-03"},"2024-09-04","2024-09-05","2024-09-06","2024-09-07","2024-09-08","2024-09-09","2024-09-10","2024-09-11","2024-09-12","2024-09-13","2024-09-14","2024-09-15","2024-09-16","2024-09-17","2024-09-18","2024-09-19","2024-09-20","2024-09-21","2024-09-22","2024-09-23","2024-09-24","2024-09-25","2024-09-26","2024-09-27","2024-09-28","2024-09-29","2024-09-30","2024-10-01","Total"]
["Absences",null,{"$f":"IF(WEEKDAY(C13,2)>5,\"WE\",\"\")","v":"WE"},{"$f":"IF(WEEKDAY(D13,2)>5,\"WE\",\"\")","v":""},{"$f":"IF(WEEKDAY(E13,2)>5,\"WE\",\"\")","v":""},"","","","WE","WE","","","","","","WE","WE","","","","","","WE","WE","","","","","","WE","WE","",""]
["Intitulé du projet","Activités"]
[null,null,null,null,null,null,null,null,null,null,null,null,null,null,null,null,null,null,null,null,null,null,null,null,null,null,null,null,null,null,null,null,null,{"$f":"SUM(C16:AG16)","v":0},null,null,{"$f":"VLOOKUP(A16,$AO$4:$AP$10,2,TRUE)","v":"projet_7"}]
[null,null,null,null,null,null,null,null,null,null,null,null,null,null,null,null,null,null,null,null,null,null,null,null,null,null,null,null,null,null,null,null,null,{"$f":"SUM(C17:AG17)","v":0},null,null,{"$f":"VLOOKUP(A17,$AO$4:$AP$10,2,TRUE)","v":"projet_7"}]
[null,null,null,null,null,null,null,null,null,null,null,null,null,null,null,null,null,null,null,null,null,null,null,null,null,null,null,null,null,null,null,null,null,0,null,null,"projet_7"]
[null,null,null,null,null,null,null,null,null,null,null,null,null,null,null,null,null,null,null,null,null,null,null,null,null,null,null,null,null,null,null,null,null,0,null,null,"projet_7"]
[null,null,null,null,null,null,null,null,null,null,null,null,null,null,null,null,null,null,null,null,null,null,null,null,null,null,null,null,null,null,null,null,null,0,null,null,"projet_7"]
[null,null,null,null,null,null,null,null,null,null,null,null,null,null,null,null,null,null,null,null,null,null,null,null,null,null,null,null,null,null,null,null,null,0,null,null,"projet_7"]
[null,null,null,null,null,null,null,null,null,null,null,null,null,null,null,null,null,null,null,null,null,null,null,null,null,null,null,null,null,null,null,null,null,0,null,null,"projet_7"]
[null,null,null,null,null,null,null,null,null,null,null,null,null,null,null,null,null,null,null,null,null,null,null,null,null,null,null,null,null,null,null,null,null,0,null,null,"projet_7"]
[null,null,null,null,null,null,null,null,null,null,null,null,null,null,null,null,null,null,null,null,null,null,null,null,null,null,null,null,null,null,null,null,null,0,null,null,"projet_7"]
[null,null,null,null,null,null,null,null,null,null,null,null,null,null,null,null,null,null,null,null,null,null,null,null,null,null,null,null,null,null,null,null,null,0,null,null,"projet_7"]
[null,null,null,null,null,null,null,null,null,null,null,null,null,null,null,null,null,null,null,null,null,null,null,null,null,null,null,null,null,null,null,null,null,0,null,null,"projet_7"]
[null,null,null,null,null,null,null,null,null,null,null,null,null,null,null,null,null,null,null,null,null,null,null,null,null,null,null,null,null,null,null,null,null,0,null,null,"projet_7"]
[null,null,null,null,null,null,null,null,null,null,null,null,null,null,null,null,null,null,null,null,null,null,null,null,null,null,null,null,null,null,null,null,null,0,null,null,"projet_7"]
[null,null,null,null,null,null,null,null,null,null,null,null,null,null,null,null,null,null,null,null,null,null,null,null,null,null,null,null,null,null,null,null,null,0,null,null,"projet_7"]
[null,null,null,null,null,null,null,null,null,null,null,null,null,null,null,null,null,null,null,null,null,null,null,null,null,null,null,null,null,null,null,null,null,0,null,null,"projet_7"]
[null,null,null,null,null,null,null,null,null,null,null,null,null,null,null,null,null,null,null,null,null,null,null,null,null,null,null,null,null,null,null,null,null,0,null,null,"projet_7"]
[null,null,null,null,null,null,null,null,null,null,null,null,null,null,null,null,null,null,null,null,null,null,null,null,null,null,null,null,null,null,null,null,null,0,null,null,"projet_7"]
[null,null,null,null,null,null,null,null,null,null,null,null,null,null,null,null,null,null,null,null,null,null,null,null,null,null,null,null,null,null,null,null,null,0,null,null,"projet_7"]
[null,null,null,null,null,null,null,null,null,null,null,null,null,null,null,null,null,null,null,null,null,null,null,null,null,null,null,null,null,null,null,null,null,0,null,null,"projet_7"]
[null,{"$f":"\"Total - \"&J4","v":"Total - a"},{"$f":"SUMIF($A$16:$A$34,$J4,C$16:C$34)","v":0},{"$f":"SUMIF($A$16:$A$34,$J4,D$16:D$34)","v":0},0,0,0,0,0,0,0,0,0,0,0,0,0,0,0,0,0,0,0,0,0,0,0,0,0,0,0,0,0,0]
[null,"Total - b",{"$f":"SUMIF($A$16:$A$34,$J5,C$16:C$34)","v":0},0,0,0,0,0,0,0,0,0,0,0,0,0,0,0,0,0,0,0,0,0,0,0,0,0,0,0,0,0,0,0]
[null,"Total - c",{"$f":"SUMIF($A$16:$A$34,$J6,C$16:C$34)","v":0},{"$f":"SUMIF($A$16:$A$34,$J$6,D$16:D$34)","v":0},0,0,0,0,0,0,0,0,0,0,0,0,0,0,0,0,0,0,0,0,0,0,0,0,0,0,0,0,0,0]
[null,"Total - ",{"$f":"SUMIF($A$16:$A$34,$J$7,C$16:C$34)","v":0},0,0,0,0,0,0,0,0,0,0,0,0,0,0,0,0,0,0,0,0,0,0,0,0,0,0,0,0,0,0,0]
[null,"Total - ",{"$f":"SUMIF($A$16:$A$34,$J$8,C$16:C$34)","v":0},0,0,0,0,0,0,0,0,0,0,0,0,0,0,0,0,0,0,0,0,0,0,0,0,0,0,0,0,0,0,0]
[null,"Total - ",{"$f":"SUMIF($A$16:$A$34,$J$9,C$16:C$34)","v":0},0,0,0,0,0,0,0,0,0,0,0,0,0,0,0,0,0,0,0,0,0,0,0,0,0,0,0,0,0,0,0]
[null,"Total - ",{"$f":"SUMIF($A$16:$A$34,$J$10,C$16:C$34)","v":0},0,0,0,0,0,0,0,0,0,0,0,0,0,0,0,0,0,0,0,0,0,0,0,0,0,0,0,0,0,0,0]
[null,"Heures HORS SUBVENTION",null,null,null,null,null,null,null,null,null,null,null,null,null,null,null,null,null,null,null,null,null,null,null,null,null,null,null,null,null,null,null,{"$f":"SUM(C42:AG42)","v":0}]
[null,"Total",{"$f":"SUM(C35:C42)","v":0},{"$f":"SUM(D35:D42)","v":0},0,0,0,0,0,0,0,0,0,0,0,0,0,0,0,0,0,0,0,0,0,0,0,0,0,0,0,0,0,{"$f":"SUM(C43:AG43)","v":0}]
[null,"* Normalement une journée = 7,6 heures et 1 an à temps plein = 1.720 heures max"]
[]
[null,null,"Date et signature du collaborateur",null,null,null,null,null,null,null,null,null,null,null,null,null,"Date et signature du responsable hiérarchique"]

{"sheet":"Octobre","index":9,"n_rows":46,"n_cols":42,"rows_kept":46,"cut":false,"hidden":false,"merged":[[53,2,53,24],[54,2,58,24],[12,0,12,1],[13,0,13,1],[45,2,45,10],[45,16,45,24],[46,2,50,10],[46,16,50,24],[8,1,8,7],[8,9,8,18],[8,20,8,26],[9,1,9,7],[9,9,9,18],[9,20,9,26],[6,1,6,7],[6,9,6,18],[6,20,6,26],[7,1,7,7],[7,9,7,18],[7,20,7,26],[4,1,4,7],[4,9,4,18],[4,20,4,26],[5,1,5,7],[5,9,5,18],[5,20,5,26],[1,0,2,7],[1,9,2,18],[1,20,2,27],[3,1,3,7],[3,9,3,18],[3,20,3,26]]}
[null,null,null,null,null,null,null,null,null,null,null,null,null,null,null,null,null,null,null,null,null,null,null,null,null,null,null,null,null,null,null,null,null,null,null,null,null,"Janvier",2022,"2022-01-01"]
["Références du collaborateur",null,null,null,null,null,null,null,null,"Référence du/des projets subventionnés + source de financement",null,null,null,null,null,null,null,null,null,null,"Absences",null,null,null,null,null,null,null,null,null,null,null,null,null,null,null,null,"Février",2023,"2022-04-18"]
[null,null,null,null,null,null,null,null,null,null,null,null,null,null,null,null,null,null,null,null,null,null,null,null,null,null,null,null,null,null,null,null,null,null,null,null,null,"Mars",2024,"2022-05-01"]
["Nom du Bénéficiaire/Partenaire",null,null,null,null,null,null,null,null,"a",null,null,null,null,null,null,null,null,null,null,"Weekend",null,null,null,null,null,null,"WE",null,null,null,null,null,null,null,null,null,"Avril",2025,"2022-05-26",{"$f":"J4","v":"a"},"projet_1"]
["Nom du collaborateur",null,null,null,null,null,null,null,null,"b",null,null,null,null,null,null,null,null,null,null,"Maladie",null,null,null,null,null,null,"M",null,null,null,null,null,null,null,null,null,"Mai",2026,"2022-06-06","b","projet_2"]
["Nom du responsable hiérarchique",null,null,null,null,null,null,null,null,"c",null,null,null,null,null,null,null,null,null,null,"Congé légal",null,null,null,null,null,null,"C",null,null,null,null,null,null,null,null,null,"Juin",null,"2022-07-21","c","projet_3"]
["Régime de travail (indiquer %)",1,null,null,null,null,null,null,null,null,null,null,null,null,null,null,null,null,null,null,"Jours fériés",null,null,null,null,null,null,"JF",null,null,null,null,null,null,null,null,null,"Juillet",null,"2022-08-15",0,"projet_4"]
["Plafond annuel",{"$f":"1720*B7","v":1720},null,null,null,null,null,null,null,null,null,null,null,null,null,null,null,null,null,null,"Autres motifs",null,null,null,null,null,null,"A",null,null,null,null,null,null,null,null,null,"Août",null,null,0,"projet_5"]
["Année",2024,null,null,null,null,null,null,null,null,null,null,null,null,null,null,null,null,null,null,"Récupération",null,null,null,null,null,null,"R",null,null,null,null,null,null,null,null,null,"Septembre",null,"2022-11-01",0,"projet_6"]
["Mois",9,null,null,null,null,null,null,null,null,null,null,null,null,null,null,null,null,null,null,"Temps partiel",null,null,null,null,null,null,"TP",null,null,null,null,null,null,null,null,null,"Octobre",null,"2022-12-25",0,"projet_7"]
[null,null,null,null,null,null,null,null,null,null,null,null,null,null,null,null,null,null,null,null,null,null,null,null,null,null,null,null,null,null,null,null,null,null,null,null,null,"Novembre"]
[null,null,null,null,null,null,null,null,null,null,null,null,null,null,null,null,null,null,null,null,null,null,null,null,null,null,null,null,null,null,null,null,null,null,null,null,null,"Décembre"]
["Jours du calendrier",null,{"$f":"DATE(B9,B10,1)","v":"2024-09-01"},{"$f":"C13+1","v":"2024-09-02"},{"$f":"D13+1","v":"2024-09-03"},"2024-09-04","2024-09-05","2024-09-06","2024-09-07","2024-09-08","2024-09-09","2024-09-10","2024-09-11","2024-09-12","2024-09-13","2024-09-14","2024-09-15","2024-09-16","2024-09-17","2024-09-18","2024-09-19","2024-09-20","2024-09-21","2024-09-22","2024-09-23","2024-09-24","2024-09-25","2024-09-26","2024-09-27","2024-09-28","2024-09-29","2024-09-30","2024-10-01","Total"]
["Absences",null,{"$f":"IF(WEEKDAY(C13,2)>5,\"WE\",\"\")","v":"WE"},{"$f":"IF(WEEKDAY(D13,2)>5,\"WE\",\"\")","v":""},{"$f":"IF(WEEKDAY(E13,2)>5,\"WE\",\"\")","v":""},"","","","WE","WE","","","","","","WE","WE","","","","","","WE","WE","","","","","","WE","WE","",""]
["Intitulé du projet","Activités"]
[null,null,null,null,null,null,null,null,null,null,null,null,null,null,null,null,null,null,null,null,null,null,null,null,null,null,null,null,null,null,null,null,null,{"$f":"SUM(C16:AG16)","v":0},null,null,{"$f":"VLOOKUP(A16,$AO$4:$AP$10,2,TRUE)","v":"projet_7"}]
[null,null,null,null,null,null,null,null,null,null,null,null,null,null,null,null,null,null,null,null,null,null,null,null,null,null,null,null,null,null,null,null,null,{"$f":"SUM(C17:AG17)","v":0},null,null,{"$f":"VLOOKUP(A17,$AO$4:$AP$10,2,TRUE)","v":"projet_7"}]
[null,null,null,null,null,null,null,null,null,null,null,null,null,null,null,null,null,null,null,null,null,null,null,null,null,null,null,null,null,null,null,null,null,0,null,null,"projet_7"]
[null,null,null,null,null,null,null,null,null,null,null,null,null,null,null,null,null,null,null,null,null,null,null,null,null,null,null,null,null,null,null,null,null,0,null,null,"projet_7"]
[null,null,null,null,null,null,null,null,null,null,null,null,null,null,null,null,null,null,null,null,null,null,null,null,null,null,null,null,null,null,null,null,null,0,null,null,"projet_7"]
[null,null,null,null,null,null,null,null,null,null,null,null,null,null,null,null,null,null,null,null,null,null,null,null,null,null,null,null,null,null,null,null,null,0,null,null,"projet_7"]
[null,null,null,null,null,null,null,null,null,null,null,null,null,null,null,null,null,null,null,null,null,null,null,null,null,null,null,null,null,null,null,null,null,0,null,null,"projet_7"]
[null,null,null,null,null,null,null,null,null,null,null,null,null,null,null,null,null,null,null,null,null,null,null,null,null,null,null,null,null,null,null,null,null,0,null,null,"projet_7"]
[null,null,null,null,null,null,null,null,null,null,null,null,null,null,null,null,null,null,null,null,null,null,null,null,null,null,null,null,null,null,null,null,null,0,null,null,"projet_7"]
[null,null,null,null,null,null,null,null,null,null,null,null,null,null,null,null,null,null,null,null,null,null,null,null,null,null,null,null,null,null,null,null,null,0,null,null,"projet_7"]
[null,null,null,null,null,null,null,null,null,null,null,null,null,null,null,null,null,null,null,null,null,null,null,null,null,null,null,null,null,null,null,null,null,0,null,null,"projet_7"]
[null,null,null,null,null,null,null,null,null,null,null,null,null,null,null,null,null,null,null,null,null,null,null,null,null,null,null,null,null,null,null,null,null,0,null,null,"projet_7"]
[null,null,null,null,null,null,null,null,null,null,null,null,null,null,null,null,null,null,null,null,null,null,null,null,null,null,null,null,null,null,null,null,null,0,null,null,"projet_7"]
[null,null,null,null,null,null,null,null,null,null,null,null,null,null,null,null,null,null,null,null,null,null,null,null,null,null,null,null,null,null,null,null,null,0,null,null,"projet_7"]
[null,null,null,null,null,null,null,null,null,null,null,null,null,null,null,null,null,null,null,null,null,null,null,null,null,null,null,null,null,null,null,null,null,0,null,null,"projet_7"]
[null,null,null,null,null,null,null,null,null,null,null,null,null,null,null,null,null,null,null,null,null,null,null,null,null,null,null,null,null,null,null,null,null,0,null,null,"projet_7"]
[null,null,null,null,null,null,null,null,null,null,null,null,null,null,null,null,null,null,null,null,null,null,null,null,null,null,null,null,null,null,null,null,null,0,null,null,"projet_7"]
[null,null,null,null,null,null,null,null,null,null,null,null,null,null,null,null,null,null,null,null,null,null,null,null,null,null,null,null,null,null,null,null,null,0,null,null,"projet_7"]
[null,null,null,null,null,null,null,null,null,null,null,null,null,null,null,null,null,null,null,null,null,null,null,null,null,null,null,null,null,null,null,null,null,0,null,null,"projet_7"]
[null,{"$f":"\"Total - \"&J4","v":"Total - a"},{"$f":"SUMIF($A$16:$A$34,$J4,C$16:C$34)","v":0},{"$f":"SUMIF($A$16:$A$34,$J4,D$16:D$34)","v":0},0,0,0,0,0,0,0,0,0,0,0,0,0,0,0,0,0,0,0,0,0,0,0,0,0,0,0,0,0,0]
[null,"Total - b",{"$f":"SUMIF($A$16:$A$34,$J5,C$16:C$34)","v":0},0,0,0,0,0,0,0,0,0,0,0,0,0,0,0,0,0,0,0,0,0,0,0,0,0,0,0,0,0,0,0]
[null,"Total - c",{"$f":"SUMIF($A$16:$A$34,$J6,C$16:C$34)","v":0},{"$f":"SUMIF($A$16:$A$34,$J$6,D$16:D$34)","v":0},0,0,0,0,0,0,0,0,0,0,0,0,0,0,0,0,0,0,0,0,0,0,0,0,0,0,0,0,0,0]
[null,"Total - ",{"$f":"SUMIF($A$16:$A$34,$J$7,C$16:C$34)","v":0},0,0,0,0,0,0,0,0,0,0,0,0,0,0,0,0,0,0,0,0,0,0,0,0,0,0,0,0,0,0,0]
[null,"Total - ",{"$f":"SUMIF($A$16:$A$34,$J$8,C$16:C$34)","v":0},0,0,0,0,0,0,0,0,0,0,0,0,0,0,0,0,0,0,0,0,0,0,0,0,0,0,0,0,0,0,0]
[null,"Total - ",{"$f":"SUMIF($A$16:$A$34,$J$9,C$16:C$34)","v":0},0,0,0,0,0,0,0,0,0,0,0,0,0,0,0,0,0,0,0,0,0,0,0,0,0,0,0,0,0,0,0]
[null,"Total - ",{"$f":"SUMIF($A$16:$A$34,$J$10,C$16:C$34)","v":0},0,0,0,0,0,0,0,0,0,0,0,0,0,0,0,0,0,0,0,0,0,0,0,0,0,0,0,0,0,0,0]
[null,"Heures HORS SUBVENTION",null,null,null,null,null,null,null,null,null,null,null,null,null,null,null,null,null,null,null,null,null,null,null,null,null,null,null,null,null,null,null,{"$f":"SUM(C42:AG42)","v":0}]
[null,"Total",{"$f":"SUM(C35:C42)","v":0},{"$f":"SUM(D35:D42)","v":0},0,0,0,0,0,0,0,0,0,0,0,0,0,0,0,0,0,0,0,0,0,0,0,0,0,0,0,0,0,{"$f":"SUM(C43:AG43)","v":0}]
[null,"* Normalement une journée = 7,6 heures et 1 an à temps plein = 1.720 heures max"]
[]
[null,null,"Date et signature du collaborateur",null,null,null,null,null,null,null,null,null,null,null,null,null,"Date et signature du responsable hiérarchique"]

{"sheet":"Novembre","index":10,"n_rows":46,"n_cols":42,"rows_kept":46,"cut":false,"hidden":false,"merged":[[53,2,53,24],[54,2,58,24],[12,0,12,1],[13,0,13,1],[45,2,45,10],[45,16,45,24],[46,2,50,10],[46,16,50,24],[8,1,8,7],[8,9,8,18],[8,20,8,26],[9,1,9,7],[9,9,9,18],[9,20,9,26],[6,1,6,7],[6,9,6,18],[6,20,6,26],[7,1,7,7],[7,9,7,18],[7,20,7,26],[4,1,4,7],[4,9,4,18],[4,20,4,26],[5,1,5,7],[5,9,5,18],[5,20,5,26],[1,0,2,7],[1,9,2,18],[1,20,2,27],[3,1,3,7],[3,9,3,18],[3,20,3,26]]}
[null,null,null,null,null,null,null,null,null,null,null,null,null,null,null,null,null,null,null,null,null,null,null,null,null,null,null,null,null,null,null,null,null,null,null,null,null,"Janvier",2022,"2022-01-01"]
["Références du collaborateur",null,null,null,null,null,null,null,null,"Référence du/des projets subventionnés + source de financement",null,null,null,null,null,null,null,null,null,null,"Absences",null,null,null,null,null,null,null,null,null,null,null,null,null,null,null,null,"Février",2023,"2022-04-18"]
[null,null,null,null,null,null,null,null,null,null,null,null,null,null,null,null,null,null,null,null,null,null,null,null,null,null,null,null,null,null,null,null,null,null,null,null,null,"Mars",2024,"2022-05-01"]
["Nom du Bénéficiaire/Partenaire",null,null,null,null,null,null,null,null,"a",null,null,null,null,null,null,null,null,null,null,"Weekend",null,null,null,null,null,null,"WE",null,null,null,null,null,null,null,null,null,"Avril",2025,"2022-05-26",{"$f":"J4","v":"a"},"projet_1"]
["Nom du collaborateur",null,null,null,null,null,null,null,null,"b",null,null,null,null,null,null,null,null,null,null,"Maladie",null,null,null,null,null,null,"M",null,null,null,null,null,null,null,null,null,"Mai",2026,"2022-06-06","b","projet_2"]
["Nom du responsable hiérarchique",null,null,null,null,null,null,null,null,"c",null,null,null,null,null,null,null,null,null,null,"Congé légal",null,null,null,null,null,null,"C",null,null,null,null,null,null,null,null,null,"Juin",null,"2022-07-21","c","projet_3"]
["Régime de travail (indiquer %)",1,null,null,null,null,null,null,null,null,null,null,null,null,null,null,null,null,null,null,"Jours fériés",null,null,null,null,null,null,"JF",null,null,null,null,null,null,null,null,null,"Juillet",null,"2022-08-15",0,"projet_4"]
["Plafond annuel",{"$f":"1720*B7","v":1720},null,null,null,null,null,null,null,null,null,null,null,null,null,null,null,null,null,null,"Autres motifs",null,null,null,null,null,null,"A",null,null,null,null,null,null,null,null,null,"Août",null,null,0,"projet_5"]
["Année",2024,null,null,null,null,null,null,null,null,null,null,null,null,null,null,null,null,null,null,"Récupération",null,null,null,null,null,null,"R",null,null,null,null,null,null,null,null,null,"Septembre",null,"2022-11-01",0,"projet_6"]
["Mois",11,null,null,null,null,null,null,null,null,null,null,null,null,null,null,null,null,null,null,"Temps partiel",null,null,null,null,null,null,"TP",null,null,null,null,null,null,null,null,null,"Octobre",null,"2022-12-25",0,"projet_7"]
[null,null,null,null,null,null,null,null,null,null,null,null,null,null,null,null,null,null,null,null,null,null,null,null,null,null,null,null,null,null,null,null,null,null,null,null,null,"Novembre"]
[null,null,null,null,null,null,null,null,null,null,null,null,null,null,null,null,null,null,null,null,null,null,null,null,null,null,null,null,null,null,null,null,null,null,null,null,null,"Décembre"]
["Jours du calendrier",null,{"$f":"DATE(B9,B10,1)","v":"2024-11-01"},{"$f":"C13+1","v":"2024-11-02"},{"$f":"D13+1","v":"2024-11-03"},"2024-11-04","2024-11-05","2024-11-06","2024-11-07","2024-11-08","2024-11-09","2024-11-10","2024-11-11","2024-11-12","2024-11-13","2024-11-14","2024-11-15","2024-11-16","2024-11-17","2024-11-18","2024-11-19","2024-11-20","2024-11-21","2024-11-22","2024-11-23","2024-11-24","2024-11-25","2024-11-26","2024-11-27","2024-11-28","2024-11-29","2024-11-30","2024-12-01","Total"]
["Absences",null,{"$f":"IF(WEEKDAY(C13,2)>5,\"WE\",\"\")","v":""},{"$f":"IF(WEEKDAY(D13,2)>5,\"WE\",\"\")","v":"WE"},{"$f":"IF(WEEKDAY(E13,2)>5,\"WE\",\"\")","v":"WE"},"","","","","","WE","WE","","","","","","WE","WE","","","","","","WE","WE","","","","","","WE","WE"]
["Intitulé du projet","Activités"]
[null,null,null,null,null,null,null,null,null,null,null,null,null,null,null,null,null,null,null,null,null,null,null,null,null,null,null,null,null,null,null,null,null,{"$f":"SUM(C16:AG16)","v":0},null,null,{"$f":"VLOOKUP(A16,$AO$4:$AP$10,2,TRUE)","v":"projet_7"}]
[null,null,null,null,null,null,null,null,null,null,null,null,null,null,null,null,null,null,null,null,null,null,null,null,null,null,null,null,null,null,null,null,null,{"$f":"SUM(C17:AG17)","v":0},null,null,{"$f":"VLOOKUP(A17,$AO$4:$AP$10,2,TRUE)","v":"projet_7"}]
[null,null,null,null,null,null,null,null,null,null,null,null,null,null,null,null,null,null,null,null,null,null,null,null,null,null,null,null,null,null,null,null,null,0,null,null,"projet_7"]
[null,null,null,null,null,null,null,null,null,null,null,null,null,null,null,null,null,null,null,null,null,null,null,null,null,null,null,null,null,null,null,null,null,0,null,null,"projet_7"]
[null,null,null,null,null,null,null,null,null,null,null,null,null,null,null,null,null,null,null,null,null,null,null,null,null,null,null,null,null,null,null,null,null,0,null,null,"projet_7"]
[null,null,null,null,null,null,null,null,null,null,null,null,null,null,null,null,null,null,null,null,null,null,null,null,null,null,null,null,null,null,null,null,null,0,null,null,"projet_7"]
[null,null,null,null,null,null,null,null,null,null,null,null,null,null,null,null,null,null,null,null,null,null,null,null,null,null,null,null,null,null,null,null,null,0,null,null,"projet_7"]
[null,null,null,null,null,null,null,null,null,null,null,null,null,null,null,null,null,null,null,null,null,null,null,null,null,null,null,null,null,null,null,null,null,0,null,null,"projet_7"]
[null,null,null,null,null,null,null,null,null,null,null,null,null,null,null,null,null,null,null,null,null,null,null,null,null,null,null,null,null,null,null,null,null,0,null,null,"projet_7"]
[null,null,null,null,null,null,null,null,null,null,null,null,null,null,null,null,null,null,null,null,null,null,null,null,null,null,null,null,null,null,null,null,null,0,null,null,"projet_7"]
[null,null,null,null,null,null,null,null,null,null,null,null,null,null,null,null,null,null,null,null,null,null,null,null,null,null,null,null,null,null,null,null,null,0,null,null,"projet_7"]
[null,null,null,null,null,null,null,null,null,null,null,null,null,null,null,null,null,null,null,null,null,null,null,null,null,null,null,null,null,null,null,null,null,0,null,null,"projet_7"]
[null,null,null,null,null,null,null,null,null,null,null,null,null,null,null,null,null,null,null,null,null,null,null,null,null,null,null,null,null,null,null,null,null,0,null,null,"projet_7"]
[null,null,null,null,null,null,null,null,null,null,null,null,null,null,null,null,null,null,null,null,null,null,null,null,null,null,null,null,null,null,null,null,null,0,null,null,"projet_7"]
[null,null,null,null,null,null,null,null,null,null,null,null,null,null,null,null,null,null,null,null,null,null,null,null,null,null,null,null,null,null,null,null,null,0,null,null,"projet_7"]
[null,null,null,null,null,null,null,null,null,null,null,null,null,null,null,null,null,null,null,null,null,null,null,null,null,null,null,null,null,null,null,null,null,0,null,null,"projet_7"]
[null,null,null,null,null,null,null,null,null,null,null,null,null,null,null,null,null,null,null,null,null,null,null,null,null,null,null,null,null,null,null,null,null,0,null,null,"projet_7"]
[null,null,null,null,null,null,null,null,null,null,null,null,null,null,null,null,null,null,null,null,null,null,null,null,null,null,null,null,null,null,null,null,null,0,null,null,"projet_7"]
[null,null,null,null,null,null,null,null,null,null,null,null,null,null,null,null,null,null,null,null,null,null,null,null,null,null,null,null,null,null,null,null,null,0,null,null,"projet_7"]
[null,{"$f":"\"Total - \"&J4","v":"Total - a"},{"$f":"SUMIF($A$16:$A$34,$J4,C$16:C$34)","v":0},{"$f":"SUMIF($A$16:$A$34,$J4,D$16:D$34)","v":0},0,0,0,0,0,0,0,0,0,0,0,0,0,0,0,0,0,0,0,0,0,0,0,0,0,0,0,0,0,0]
[null,"Total - b",{"$f":"SUMIF($A$16:$A$34,$J5,C$16:C$34)","v":0},0,0,0,0,0,0,0,0,0,0,0,0,0,0,0,0,0,0,0,0,0,0,0,0,0,0,0,0,0,0,0]
[null,"Total - c",{"$f":"SUMIF($A$16:$A$34,$J6,C$16:C$34)","v":0},{"$f":"SUMIF($A$16:$A$34,$J$6,D$16:D$34)","v":0},0,0,0,0,0,0,0,0,0,0,0,0,0,0,0,0,0,0,0,0,0,0,0,0,0,0,0,0,0,0]
[null,"Total - ",{"$f":"SUMIF($A$16:$A$34,$J$7,C$16:C$34)","v":0},0,0,0,0,0,0,0,0,0,0,0,0,0,0,0,0,0,0,0,0,0,0,0,0,0,0,0,0,0,0,0]
[null,"Total - ",{"$f":"SUMIF($A$16:$A$34,$J$8,C$16:C$34)","v":0},0,0,0,0,0,0,0,0,0,0,0,0,0,0,0,0,0,0,0,0,0,0,0,0,0,0,0,0,0,0,0]
[null,"Total - ",{"$f":"SUMIF($A$16:$A$34,$J$9,C$16:C$34)","v":0},0,0,0,0,0,0,0,0,0,0,0,0,0,0,0,0,0,0,0,0,0,0,0,0,0,0,0,0,0,0,0]
[null,"Total - ",{"$f":"SUMIF($A$16:$A$34,$J$10,C$16:C$34)","v":0},0,0,0,0,0,0,0,0,0,0,0,0,0,0,0,0,0,0,0,0,0,0,0,0,0,0,0,0,0,0,0]
[null,"Heures HORS SUBVENTION",null,null,null,null,null,null,null,null,null,null,null,null,null,null,null,null,null,null,null,null,null,null,null,null,null,null,null,null,null,null,null,{"$f":"SUM(C42:AG42)","v":0}]
[null,"Total",{"$f":"SUM(C35:C42)","v":0},{"$f":"SUM(D35:D42)","v":0},0,0,0,0,0,0,0,0,0,0,0,0,0,0,0,0,0,0,0,0,0,0,0,0,0,0,0,0,0,{"$f":"SUM(C43:AG43)","v":0}]
[null,"* Normalement une journée = 7,6 heures et 1 an à temps plein = 1.720 heures max"]
[]
[null,null,"Date et signature du collaborateur",null,null,null,null,null,null,null,null,null,null,null,null,null,"Date et signature du responsable hiérarchique"]

{"sheet":"Décembre","index":11,"n_rows":46,"n_cols":42,"rows_kept":46,"cut":false,"hidden":false,"merged":[[53,2,53,24],[54,2,58,24],[12,0,12,1],[13,0,13,1],[45,2,45,10],[45,16,45,24],[46,2,50,10],[46,16,50,24],[8,1,8,7],[8,9,8,18],[8,20,8,26],[9,1,9,7],[9,9,9,18],[9,20,9,26],[6,1,6,7],[6,9,6,18],[6,20,6,26],[7,1,7,7],[7,9,7,18],[7,20,7,26],[4,1,4,7],[4,9,4,18],[4,20,4,26],[5,1,5,7],[5,9,5,18],[5,20,5,26],[1,0,2,7],[1,9,2,18],[1,20,2,27],[3,1,3,7],[3,9,3,18],[3,20,3,26]]}
[null,null,null,null,null,null,null,null,null,null,null,null,null,null,null,null,null,null,null,null,null,null,null,null,null,null,null,null,null,null,null,null,null,null,null,null,null,"Janvier",2022,"2022-01-01"]
["Références du collaborateur",null,null,null,null,null,null,null,null,"Référence du/des projets subventionnés + source de financement",null,null,null,null,null,null,null,null,null,null,"Absences",null,null,null,null,null,null,null,null,null,null,null,null,null,null,null,null,"Février",2023,"2022-04-18"]
[null,null,null,null,null,null,null,null,null,null,null,null,null,null,null,null,null,null,null,null,null,null,null,null,null,null,null,null,null,null,null,null,null,null,null,null,null,"Mars",2024,"2022-05-01"]
["Nom du Bénéficiaire/Partenaire",null,null,null,null,null,null,null,null,"a",null,null,null,null,null,null,null,null,null,null,"Weekend",null,null,null,null,null,null,"WE",null,null,null,null,null,null,null,null,null,"Avril",2025,"2022-05-26",{"$f":"J4","v":"a"},"projet_1"]
["Nom du collaborateur",null,null,null,null,null,null,null,null,"b",null,null,null,null,null,null,null,null,null,null,"Maladie",null,null,null,null,null,null,"M",null,null,null,null,null,null,null,null,null,"Mai",2026,"2022-06-06","b","projet_2"]
["Nom du responsable hiérarchique",null,null,null,null,null,null,null,null,"c",null,null,null,null,null,null,null,null,null,null,"Congé légal",null,null,null,null,null,null,"C",null,null,null,null,null,null,null,null,null,"Juin",null,"2022-07-21","c","projet_3"]
["Régime de travail (indiquer %)",1,null,null,null,null,null,null,null,null,null,null,null,null,null,null,null,null,null,null,"Jours fériés",null,null,null,null,null,null,"JF",null,null,null,null,null,null,null,null,null,"Juillet",null,"2022-08-15",0,"projet_4"]
["Plafond annuel",{"$f":"1720*B7","v":1720},null,null,null,null,null,null,null,null,null,null,null,null,null,null,null,null,null,null,"Autres motifs",null,null,null,null,null,null,"A",null,null,null,null,null,null,null,null,null,"Août",null,null,0,"projet_5"]
["Année",2024,null,null,null,null,null,null,null,null,null,null,null,null,null,null,null,null,null,null,"Récupération",null,null,null,null,null,null,"R",null,null,null,null,null,null,null,null,null,"Septembre",null,"2022-11-01",0,"projet_6"]
["Mois",12,null,null,null,null,null,null,null,null,null,null,null,null,null,null,null,null,null,null,"Temps partiel",null,null,null,null,null,null,"TP",null,null,null,null,null,null,null,null,null,"Octobre",null,"2022-12-25",0,"projet_7"]
[null,null,null,null,null,null,null,null,null,null,null,null,null,null,null,null,null,null,null,null,null,null,null,null,null,null,null,null,null,null,null,null,null,null,null,null,null,"Novembre"]
[null,null,null,null,null,null,null,null,null,null,null,null,null,null,null,null,null,null,null,null,null,null,null,null,null,null,null,null,null,null,null,null,null,null,null,null,null,"Décembre"]
["Jours du calendrier",null,{"$f":"DATE(B9,B10,1)","v":"2024-12-01"},{"$f":"C13+1","v":"2024-12-02"},{"$f":"D13+1","v":"2024-12-03"},"2024-12-04","2024-12-05","2024-12-06","2024-12-07","2024-12-08","2024-12-09","2024-12-10","2024-12-11","2024-12-12","2024-12-13","2024-12-14","2024-12-15","2024-12-16","2024-12-17","2024-12-18","2024-12-19","2024-12-20","2024-12-21","2024-12-22","2024-12-23","2024-12-24","2024-12-25","2024-12-26","2024-12-27","2024-12-28","2024-12-29","2024-12-30","2024-12-31","Total"]
["Absences",null,{"$f":"IF(WEEKDAY(C13,2)>5,\"WE\",\"\")","v":"WE"},{"$f":"IF(WEEKDAY(D13,2)>5,\"WE\",\"\")","v":""},{"$f":"IF(WEEKDAY(E13,2)>5,\"WE\",\"\")","v":""},"","","","WE","WE","","","","","","WE","WE","","","","","","WE","WE","","","","","","WE","WE","",""]
["Intitulé du projet","Activités"]
[null,null,null,null,null,null,null,null,null,null,null,null,null,null,null,null,null,null,null,null,null,null,null,null,null,null,null,null,null,null,null,null,null,{"$f":"SUM(C16:AG16)","v":0},null,null,{"$f":"VLOOKUP(A16,$AO$4:$AP$10,2,TRUE)","v":"projet_7"}]
[null,null,null,null,null,null,null,null,null,null,null,null,null,null,null,null,null,null,null,null,null,null,null,null,null,null,null,null,null,null,null,null,null,{"$f":"SUM(C17:AG17)","v":0},null,null,{"$f":"VLOOKUP(A17,$AO$4:$AP$10,2,TRUE)","v":"projet_7"}]
[null,null,null,null,null,null,null,null,null,null,null,null,null,null,null,null,null,null,null,null,null,null,null,null,null,null,null,null,null,null,null,null,null,0,null,null,"projet_7"]
[null,null,null,null,null,null,null,null,null,null,null,null,null,null,null,null,null,null,null,null,null,null,null,null,null,null,null,null,null,null,null,null,null,0,null,null,"projet_7"]
[null,null,null,null,null,null,null,null,null,null,null,null,null,null,null,null,null,null,null,null,null,null,null,null,null,null,null,null,null,null,null,null,null,0,null,null,"projet_7"]
[null,null,null,null,null,null,null,null,null,null,null,null,null,null,null,null,null,null,null,null,null,null,null,null,null,null,null,null,null,null,null,null,null,0,null,null,"projet_7"]
[null,null,null,null,null,null,null,null,null,null,null,null,null,null,null,null,null,null,null,null,null,null,null,null,null,null,null,null,null,null,null,null,null,0,null,null,"projet_7"]
[null,null,null,null,null,null,null,null,null,null,null,null,null,null,null,null,null,null,null,null,null,null,null,null,null,null,null,null,null,null,null,null,null,0,null,null,"projet_7"]
[null,null,null,null,null,null,null,null,null,null,null,null,null,null,null,null,null,null,null,null,null,null,null,null,null,null,null,null,null,null,null,null,null,0,null,null,"projet_7"]
[null,null,null,null,null,null,null,null,null,null,null,null,null,null,null,null,null,null,null,null,null,null,null,null,null,null,null,null,null,null,null,null,null,0,null,null,"projet_7"]
[null,null,null,null,null,null,null,null,null,null,null,null,null,null,null,null,null,null,null,null,null,null,null,null,null,null,null,null,null,null,null,null,null,0,null,null,"projet_7"]
[null,null,null,null,null,null,null,null,null,null,null,null,null,null,null,null,null,null,null,null,null,null,null,null,null,null,null,null,null,null,null,null,null,0,null,null,"projet_7"]
[null,null,null,null,null,null,null,null,null,null,null,null,null,null,null,null,null,null,null,null,null,null,null,null,null,null,null,null,null,null,null,null,null,0,null,null,"projet_7"]
[null,null,null,null,null,null,null,null,null,null,null,null,null,null,null,null,null,null,null,null,null,null,null,null,null,null,null,null,null,null,null,null,null,0,null,null,"projet_7"]
[null,null,null,null,null,null,null,null,null,null,null,null,null,null,null,null,null,null,null,null,null,null,null,null,null,null,null,null,null,null,null,null,null,0,null,null,"projet_7"]
[null,null,null,null,null,null,null,null,null,null,null,null,null,null,null,null,null,null,null,null,null,null,null,null,null,null,null,null,null,null,null,null,null,0,null,null,"projet_7"]
[null,null,null,null,null,null,null,null,null,null,null,null,null,null,null,null,null,null,null,null,null,null,null,null,null,null,null,null,null,null,null,null,null,0,null,null,"projet_7"]
[null,null,null,null,null,null,null,null,null,null,null,null,null,null,null,null,null,null,null,null,null,null,null,null,null,null,null,null,null,null,null,null,null,0,null,null,"projet_7"]
[null,null,null,null,null,null,null,null,null,null,null,null,null,null,null,null,null,null,null,null,null,null,null,null,null,null,null,null,null,null,null,null,null,0,null,null,"projet_7"]
[null,{"$f":"\"Total - \"&J4","v":"Total - a"},{"$f":"SUMIF($A$16:$A$34,$J4,C$16:C$34)","v":0},{"$f":"SUMIF($A$16:$A$34,$J4,D$16:D$34)","v":0},0,0,0,0,0,0,0,0,0,0,0,0,0,0,0,0,0,0,0,0,0,0,0,0,0,0,0,0,0,0]
[null,"Total - b",{"$f":"SUMIF($A$16:$A$34,$J5,C$16:C$34)","v":0},0,0,0,0,0,0,0,0,0,0,0,0,0,0,0,0,0,0,0,0,0,0,0,0,0,0,0,0,0,0,0]
[null,"Total - c",{"$f":"SUMIF($A$16:$A$34,$J6,C$16:C$34)","v":0},{"$f":"SUMIF($A$16:$A$34,$J$6,D$16:D$34)","v":0},0,0,0,0,0,0,0,0,0,0,0,0,0,0,0,0,0,0,0,0,0,0,0,0,0,0,0,0,0,0]
[null,"Total - ",{"$f":"SUMIF($A$16:$A$34,$J$7,C$16:C$34)","v":0},0,0,0,0,0,0,0,0,0,0,0,0,0,0,0,0,0,0,0,0,0,0,0,0,0,0,0,0,0,0,0]
[null,"Total - ",{"$f":"SUMIF($A$16:$A$34,$J$8,C$16:C$34)","v":0},0,0,0,0,0,0,0,0,0,0,0,0,0,0,0,0,0,0,0,0,0,0,0,0,0,0,0,0,0,0,0]
[null,"Total - ",{"$f":"SUMIF($A$16:$A$34,$J$9,C$16:C$34)","v":0},0,0,0,0,0,0,0,0,0,0,0,0,0,0,0,0,0,0,0,0,0,0,0,0,0,0,0,0,0,0,0]
[null,"Total - ",{"$f":"SUMIF($A$16:$A$34,$J$10,C$16:C$34)","v":0},0,0,0,0,0,0,0,0,0,0,0,0,0,0,0,0,0,0,0,0,0,0,0,0,0,0,0,0,0,0,0]
[null,"Heures HORS SUBVENTION",null,null,null,null,null,null,null,null,null,null,null,null,null,null,null,null,null,null,null,null,null,null,null,null,null,null,null,null,null,null,null,{"$f":"SUM(C42:AG42)","v":0}]
[null,"Total",{"$f":"SUM(C35:C42)","v":0},{"$f":"SUM(D35:D42)","v":0},0,0,0,0,0,0,0,0,0,0,0,0,0,0,0,0,0,0,0,0,0,0,0,0,0,0,0,0,0,{"$f":"SUM(C43:AG43)","v":0}]
[null,"* Normalement une journée = 7,6 heures et 1 an à temps plein = 1.720 heures max"]
[]
[null,null,"Date et signature du collaborateur",null,null,null,null,null,null,null,null,null,null,null,null,null,"Date et signature du responsable hiérarchique"]

{"sheet":"Activités","index":12,"n_rows":2,"n_cols":7,"rows_kept":2,"cut":false,"hidden":false,"merged":[]}
[{"$f":"Janvier!J4","v":"a"},{"$f":"Janvier!J5","v":"b"},{"$f":"Janvier!J6","v":"c"},{"$f":"Janvier!J7","v":0},{"$f":"Janvier!J8","v":0},{"$f":"Janvier!J9","v":0},{"$f":"Janvier!J10","v":0}]
["test projet 1","test projet 2","test projet 3","test projet 4","test projet 5","test projet 6","test projet 7"]